Workbook

Sheet Tiêu hao calo
B1: LỊCH BIỂU TIÊU HAO CALO
B2: =IFERROR(CONCATENATE("CHỈ ",DATEDIF(Ngày_bắt_đầu,Ngày_đích,"m")," THÁNG VÀ ", DATEDIF(Ngày_bắt_đầu,Ngày_đích,"md"),Số_ngày),"") -> CHỈ 3 THÁNG VÀ 14 NGÀY | H2: =IF(Cân_nặng_mong_muốn="GIẢM","Bạn không nên giảm lượng calo thu nạp hơn 1000 dưới nhu cầu calo hàng ngày hoặc tiêu thụ ít hơn " & IF(Giới_tính="NỮ","1200 calo mỗi ngày.","1800 calo mỗi ngày."),"") -> Bạn không nên giảm lượng calo thu nạp hơn 1000 dưới nhu cầu calo hàng ngày hoặc tiêu thụ ít hơn 1200 calo mỗi ngày.
B3: =IF(Cân_nặng_mong_muốn="Duy trì",""," CHO ĐẾN KHI BẠN ĐẠT ĐƯỢC MỤC TIÊU CỦA MÌNH!") -> CHO ĐẾN KHI BẠN ĐẠT ĐƯỢC MỤC TIÊU CỦA MÌNH! | H3: =IF(Cân_nặng_mong_muốn="Duy trì","",CONCATENATE("Ngày đích mục tiêu dựa trên mức ",IF(Cân_nặng_mong_muốn="GIẢM","giảm ","tăng "),"cân trung bình được đề xuất là ",IF(Đơn_vị_đo="HỆ ĐO LƯỜNG ANH","1 lb",".45 k")," mỗi tuần.")) -> Ngày đích mục tiêu dựa trên mức giảm cân trung bình được đề xuất là 1 lb mỗi tuần.
B4: MỨC HOẠT ĐỘNG | H4: HỆ THỐNG ĐO LƯỜNG | J4: TRỌNG SỐ HIỆN TẠI | L4: TUỔI
B5: HOẠT ĐỘNG BÌNH THƯỜNG | E5: =VLOOKUP(Mức_độ,Hình_thức_tập_luyện[],2,FALSE) -> TẬP THỂ DỤC 3-5 NGÀY/TUẦN | H5: HỆ ĐO LƯỜNG ANH | J5: 150.0 | L5: 34
B6: TÔI MUỐN CÂN NẶNG CỦA MÌNH | H6: =IF(Tiêu_chuẩn,"CHIỀU CAO THEO FT","CHIỀU CAO THEO M") -> CHIỀU CAO THEO FT | I6: =IF(Tiêu_chuẩn,"INCH","CM") -> INCH | J6: CÂN NẶNG MỤC TIÊU | L6: GIỚI TÍNH
B7: GIẢM | H7: 5 | I7: 5.0 | J7: 135.0 | L7: NỮ
B8: NGÀY BẮT ĐẦU MỤC TIÊU | E8: NGÀY ĐẠT ĐƯỢC MỤC TIÊU | H8: NHU CẦU CALO HÀNG NGÀY BAN ĐẦU | J8: LƯỢNG CALO ĂN VÀO HÀNG NGÀY BAN ĐẦU | L8: =IF(Cân_nặng_mong_muốn="Tăng","VƯỢT QUÁ LƯỢNG CALO CẦN THIẾT","LƯỢNG CALO CẦN ĐỐT") -> LƯỢNG CALO CẦN ĐỐT
B9: =TODAY()-5 -> 2022-08-14 | E9: =IF(Cân_nặng_mong_muốn="Duy trì","",IF(AND(Tất_cả_đã_hoàn_thành,B12<>""),MAX(B11:B998),"Ngày mục tiêu không được ít hơn ngày bắt đầu. Vui lòng kiểm tra các mục nhập của bạn.")) -> 2022-11-28 | H9: =IF(Tất_cả_đã_hoàn_thành,BMR*Hệ_số_hoạt_động,"") -> 2252 | J9: =IF(Tất_cả_đã_hoàn_thành,BMR*Hệ_số_hoạt_động+IF(Cân_nặng_mong_muốn="Duy trì",0,IF(Cân_nặng_mong_muốn="GIẢM",-500,IF(Cân_nặng_mong_muốn="Tăng",500))),"") -> 1752 | L9: =IF(Cân_nặng_mong_muốn="Duy trì","",(Cân_nặng_cần_tăng_giảm)*IF(Tiêu_chuẩn,1,2.2)*3500) -> 52500
B10: NGÀY | C10: TUẦN | D10: NGÀY | E10: CÂN NẶNG | F10: BMR | G10: CALO ĐÃ SỬ DỤNG | H10: CALO ĐƯỢC ĐỐT CHÁY | I10: =IF(Cân_nặng_mong_muốn="Tăng", "THÊM CAL","THIẾU HỤT CAL") -> THIẾU HỤT CAL | J10: CALO CÒN LẠI | K10: =IF(Đơn_vị_đo="HỆ ĐO LƯỜNG ANH","LBS CÒN LẠI","KGS CÒN LẠI") -> LBS CÒN LẠI | L10: =IF(Cân_nặng_mong_muốn="Tăng","TĂNG","GIẢM") -> GIẢM | M10: % MỤC TIÊU
B11: =IFERROR(IF(Duy_trì,"",Ngày_bắt_đầu), "") -> 2022-08-14 | C11: =IFERROR(IF(Duy_trì,"",1), "") -> 1 | D11: =IFERROR(IF(AND(ISNUMBER(J11),J11>0),1,""), "") -> 1 | E11: =IFERROR(IF(Duy_trì,"",Cân_nặng), "") -> 150.0 | F11: =IFERROR(IF(Duy_trì,"",IF(E11>0,BMR_chạy,"")), "") -> 1453 | G11: =IFERROR(IF(Duy_trì,"",Lượng_calo_thu_nạp_ban_đầu), "") -> 1752 | H11: =IFERROR(F11*(Hệ_số_hoạt_động),"") -> 2252 | I11: =IFERROR(IF(Cân_nặng_mong_muốn="Tăng",G11-H11,H11-G11),"") -> 500 | J11: =IFERROR(L9, "") -> 52500 | K11: =IFERROR(IF(_xlfn.SINGLE(Tiêu_chuẩn),J11/_xlfn.SINGLE(Calo_Pound),J11/_xlfn.SINGLE(Calo_Pound)/2.2),"") -> 15.0 | L11: =IFERROR(Cân_nặng_cần_tăng_giảm-K11,"") -> 0.00 | M11: =IFERROR(IF(Duy_trì,"",0%), "") -> 0%
B12: =IFERROR(IF(K11>0,B11+1,""),"") -> 2022-08-15 | C12: =IFERROR(IF(D12<>"",IF(MOD(D12,7)=1,(D11/7)+1,""),""),"") ->  | D12: =IFERROR(IF(K11>0,D11+1,""),"") -> 2 | E12: =IFERROR(IF($D12<>"",E11-(I11/Calo_Pound),""),"") -> 149.9 | F12: =IFERROR(BMR_chạy,"") -> 1453 | G12: =IFERROR(IF(K11>0,F11*Hệ_số_hoạt_động+IF(Cân_nặng_mong_muốn="Duy trì",0,IF(Cân_nặng_mong_muốn="GIẢM",-500,IF(Cân_nặng_mong_muốn="Tăng",500))),""),"") -> 1752 | H12: =IFERROR(F12*(Hệ_số_hoạt_động),"") -> 2251 | I12: 499 | J12: =IFERROR(J11-I12,"") -> 52001 | K12: =IFERROR(IF(_xlfn.SINGLE(Tiêu_chuẩn),J12/_xlfn.SINGLE(Calo_Pound),J12/_xlfn.SINGLE(Calo_Pound)/2.2),"") -> 14.9 | L12: =IFERROR(Cân_nặng_cần_tăng_giảm-K12,"") -> 0.14 | M12: =IFERROR(IF(B11<>"",L12/(Cân_nặng_cần_tăng_giảm),""),"") -> 1%
B13: 2022-08-16 | C13: =IFERROR(IF(D13<>"",IF(MOD(D13,7)=1,(D12/7)+1,""),""),"") ->  | D13: 3 | E13: =IFERROR(IF($D13<>"",E12-(I12/_xlfn.SINGLE(Calo_Pound)),""),"") -> 149.7 | F13: =IFERROR(BMR_chạy,"") -> 1452 | G13: =IFERROR(IF(K12>0,F12*Hệ_số_hoạt_động+IF(Cân_nặng_mong_muốn="Duy trì",0,IF(Cân_nặng_mong_muốn="GIẢM",-500,IF(Cân_nặng_mong_muốn="Tăng",500))),""),"") -> 1751 | H13: =IFERROR(F13*(Hệ_số_hoạt_động),"") -> 2251 | I13: 499 | J13: =IFERROR(J12-I13,"") -> 51502 | K13: =IFERROR(IF(_xlfn.SINGLE(Tiêu_chuẩn),J13/_xlfn.SINGLE(Calo_Pound),J13/_xlfn.SINGLE(Calo_Pound)/2.2),"") -> 14.7 | L13: =IFERROR(Cân_nặng_cần_tăng_giảm-K13,"") -> 0.29 | M13: =IFERROR(IF(B12<>"",L13/(Cân_nặng_cần_tăng_giảm),""),"") -> 2%
B14: 2022-08-17 | D14: 4 | E14: 149.6 | F14: =IFERROR(BMR_chạy,"") -> 1451 | G14: =IFERROR(IF(K13>0,F13*Hệ_số_hoạt_động+IF(Cân_nặng_mong_muốn="Duy trì",0,IF(Cân_nặng_mong_muốn="GIẢM",-500,IF(Cân_nặng_mong_muốn="Tăng",500))),""),"") -> 1751 | H14: =IFERROR(F14*(Hệ_số_hoạt_động),"") -> 2250 | I14: 499 | J14: 51003 | K14: =IFERROR(IF(_xlfn.SINGLE(Tiêu_chuẩn),J14/_xlfn.SINGLE(Calo_Pound),J14/_xlfn.SINGLE(Calo_Pound)/2.2),"") -> 14.6 | L14: =IFERROR(Cân_nặng_cần_tăng_giảm-K14,"") -> 0.43 | M14: =IFERROR(IF(B13<>"",L14/(Cân_nặng_cần_tăng_giảm),""),"") -> 3%
B15: 2022-08-18 | D15: 5 | E15: 149.4 | F15: =IFERROR(BMR_chạy,"") -> 1451 | G15: =IFERROR(IF(K14>0,F14*Hệ_số_hoạt_động+IF(Cân_nặng_mong_muốn="Duy trì",0,IF(Cân_nặng_mong_muốn="GIẢM",-500,IF(Cân_nặng_mong_muốn="Tăng",500))),""),"") -> 1750 | H15: =IFERROR(F15*(Hệ_số_hoạt_động),"") -> 2249 | I15: 499 | J15: 50504 | K15: =IFERROR(IF(_xlfn.SINGLE(Tiêu_chuẩn),J15/_xlfn.SINGLE(Calo_Pound),J15/_xlfn.SINGLE(Calo_Pound)/2.2),"") -> 14.4 | L15: =IFERROR(Cân_nặng_cần_tăng_giảm-K15,"") -> 0.57 | M15: =IFERROR(IF(B14<>"",L15/(Cân_nặng_cần_tăng_giảm),""),"") -> 4%
B16: 2022-08-19 | D16: 6 | E16: 149.3 | F16: =IFERROR(BMR_chạy,"") -> 1450 | G16: =IFERROR(IF(K15>0,F15*Hệ_số_hoạt_động+IF(Cân_nặng_mong_muốn="Duy trì",0,IF(Cân_nặng_mong_muốn="GIẢM",-500,IF(Cân_nặng_mong_muốn="Tăng",500))),""),"") -> 1749 | H16: =IFERROR(F16*(Hệ_số_hoạt_động),"") -> 2248 | I16: 499 | J16: 50005 | K16: =IFERROR(IF(_xlfn.SINGLE(Tiêu_chuẩn),J16/_xlfn.SINGLE(Calo_Pound),J16/_xlfn.SINGLE(Calo_Pound)/2.2),"") -> 14.3 | L16: =IFERROR(Cân_nặng_cần_tăng_giảm-K16,"") -> 0.71 | M16: =IFERROR(IF(B15<>"",L16/(Cân_nặng_cần_tăng_giảm),""),"") -> 5%
B17: 2022-08-20 | D17: 7 | E17: 149.1 | F17: =IFERROR(BMR_chạy,"") -> 1449 | G17: =IFERROR(IF(K16>0,F16*Hệ_số_hoạt_động+IF(Cân_nặng_mong_muốn="Duy trì",0,IF(Cân_nặng_mong_muốn="GIẢM",-500,IF(Cân_nặng_mong_muốn="Tăng",500))),""),"") -> 1748 | H17: =IFERROR(F17*(Hệ_số_hoạt_động),"") -> 2247 | I17: 499 | J17: 49506 | K17: =IFERROR(IF(_xlfn.SINGLE(Tiêu_chuẩn),J17/_xlfn.SINGLE(Calo_Pound),J17/_xlfn.SINGLE(Calo_Pound)/2.2),"") -> 14.1 | L17: =IFERROR(Cân_nặng_cần_tăng_giảm-K17,"") -> 0.86 | M17: =IFERROR(IF(B16<>"",L17/(Cân_nặng_cần_tăng_giảm),""),"") -> 6%
B18: 2022-08-21 | C18: 2 | D18: 8 | E18: 149.0 | F18: =IFERROR(BMR_chạy,"") -> 1449 | G18: =IFERROR(IF(K17>0,F17*Hệ_số_hoạt_động+IF(Cân_nặng_mong_muốn="Duy trì",0,IF(Cân_nặng_mong_muốn="GIẢM",-500,IF(Cân_nặng_mong_muốn="Tăng",500))),""),"") -> 1747 | H18: =IFERROR(F18*(Hệ_số_hoạt_động),"") -> 2246 | I18: 499 | J18: 49007 | K18: =IFERROR(IF(_xlfn.SINGLE(Tiêu_chuẩn),J18/_xlfn.SINGLE(Calo_Pound),J18/_xlfn.SINGLE(Calo_Pound)/2.2),"") -> 14.0 | L18: =IFERROR(Cân_nặng_cần_tăng_giảm-K18,"") -> 1.00 | M18: =IFERROR(IF(B17<>"",L18/(Cân_nặng_cần_tăng_giảm),""),"") -> 7%
B19: 2022-08-22 | D19: 9 | E19: 148.9 | F19: =IFERROR(BMR_chạy,"") -> 1448 | G19: =IFERROR(IF(K18>0,F18*Hệ_số_hoạt_động+IF(Cân_nặng_mong_muốn="Duy trì",0,IF(Cân_nặng_mong_muốn="GIẢM",-500,IF(Cân_nặng_mong_muốn="Tăng",500))),""),"") -> 1746 | H19: =IFERROR(F19*(Hệ_số_hoạt_động),"") -> 2245 | I19: 499 | J19: 48508 | K19: =IFERROR(IF(_xlfn.SINGLE(Tiêu_chuẩn),J19/_xlfn.SINGLE(Calo_Pound),J19/_xlfn.SINGLE(Calo_Pound)/2.2),"") -> 13.9 | L19: =IFERROR(Cân_nặng_cần_tăng_giảm-K19,"") -> 1.14 | M19: =IFERROR(IF(B18<>"",L19/(Cân_nặng_cần_tăng_giảm),""),"") -> 8%
B20: 2022-08-23 | D20: 10 | E20: 148.7 | F20: =IFERROR(BMR_chạy,"") -> 1448 | G20: =IFERROR(IF(K19>0,F19*Hệ_số_hoạt_động+IF(Cân_nặng_mong_muốn="Duy trì",0,IF(Cân_nặng_mong_muốn="GIẢM",-500,IF(Cân_nặng_mong_muốn="Tăng",500))),""),"") -> 1745 | H20: =IFERROR(F20*(Hệ_số_hoạt_động),"") -> 2244 | I20: 499 | J20: 48009 | K20: =IFERROR(IF(_xlfn.SINGLE(Tiêu_chuẩn),J20/_xlfn.SINGLE(Calo_Pound),J20/_xlfn.SINGLE(Calo_Pound)/2.2),"") -> 13.7 | L20: =IFERROR(Cân_nặng_cần_tăng_giảm-K20,"") -> 1.28 | M20: =IFERROR(IF(B19<>"",L20/(Cân_nặng_cần_tăng_giảm),""),"") -> 9%
B21: 2022-08-24 | D21: 11 | E21: 148.6 | F21: =IFERROR(BMR_chạy,"") -> 1447 | G21: =IFERROR(IF(K20>0,F20*Hệ_số_hoạt_động+IF(Cân_nặng_mong_muốn="Duy trì",0,IF(Cân_nặng_mong_muốn="GIẢM",-500,IF(Cân_nặng_mong_muốn="Tăng",500))),""),"") -> 1744 | H21: =IFERROR(F21*(Hệ_số_hoạt_động),"") -> 2243 | I21: 499 | J21: 47510 | K21: =IFERROR(IF(_xlfn.SINGLE(Tiêu_chuẩn),J21/_xlfn.SINGLE(Calo_Pound),J21/_xlfn.SINGLE(Calo_Pound)/2.2),"") -> 13.6 | L21: =IFERROR(Cân_nặng_cần_tăng_giảm-K21,"") -> 1.43 | M21: =IFERROR(IF(B20<>"",L21/(Cân_nặng_cần_tăng_giảm),""),"") -> 10%
B22: 2022-08-25 | D22: 12 | E22: 148.4 | F22: =IFERROR(BMR_chạy,"") -> 1446 | G22: =IFERROR(IF(K21>0,F21*Hệ_số_hoạt_động+IF(Cân_nặng_mong_muốn="Duy trì",0,IF(Cân_nặng_mong_muốn="GIẢM",-500,IF(Cân_nặng_mong_muốn="Tăng",500))),""),"") -> 1743 | H22: =IFERROR(F22*(Hệ_số_hoạt_động),"") -> 2242 | I22: 499 | J22: 47011 | K22: =IFERROR(IF(_xlfn.SINGLE(Tiêu_chuẩn),J22/_xlfn.SINGLE(Calo_Pound),J22/_xlfn.SINGLE(Calo_Pound)/2.2),"") -> 13.4 | L22: =IFERROR(Cân_nặng_cần_tăng_giảm-K22,"") -> 1.57 | M22: =IFERROR(IF(B21<>"",L22/(Cân_nặng_cần_tăng_giảm),""),"") -> 10%
B23: 2022-08-26 | D23: 13 | E23: 148.3 | F23: =IFERROR(BMR_chạy,"") -> 1446 | G23: =IFERROR(IF(K22>0,F22*Hệ_số_hoạt_động+IF(Cân_nặng_mong_muốn="Duy trì",0,IF(Cân_nặng_mong_muốn="GIẢM",-500,IF(Cân_nặng_mong_muốn="Tăng",500))),""),"") -> 1742 | H23: =IFERROR(F23*(Hệ_số_hoạt_động),"") -> 2241 | I23: 499 | J23: 46512 | K23: =IFERROR(IF(_xlfn.SINGLE(Tiêu_chuẩn),J23/_xlfn.SINGLE(Calo_Pound),J23/_xlfn.SINGLE(Calo_Pound)/2.2),"") -> 13.3 | L23: =IFERROR(Cân_nặng_cần_tăng_giảm-K23,"") -> 1.71 | M23: =IFERROR(IF(B22<>"",L23/(Cân_nặng_cần_tăng_giảm),""),"") -> 11%
B24: 2022-08-27 | D24: 14 | E24: 148.1 | F24: =IFERROR(BMR_chạy,"") -> 1445 | G24: =IFERROR(IF(K23>0,F23*Hệ_số_hoạt_động+IF(Cân_nặng_mong_muốn="Duy trì",0,IF(Cân_nặng_mong_muốn="GIẢM",-500,IF(Cân_nặng_mong_muốn="Tăng",500))),""),"") -> 1741 | H24: =IFERROR(F24*(Hệ_số_hoạt_động),"") -> 2240 | I24: 499 | J24: 46012 | K24: =IFERROR(IF(_xlfn.SINGLE(Tiêu_chuẩn),J24/_xlfn.SINGLE(Calo_Pound),J24/_xlfn.SINGLE(Calo_Pound)/2.2),"") -> 13.1 | L24: =IFERROR(Cân_nặng_cần_tăng_giảm-K24,"") -> 1.85 | M24: =IFERROR(IF(B23<>"",L24/(Cân_nặng_cần_tăng_giảm),""),"") -> 12%
B25: 2022-08-28 | C25: 3 | D25: 15 | E25: 148.0 | F25: =IFERROR(BMR_chạy,"") -> 1445 | G25: =IFERROR(IF(K24>0,F24*Hệ_số_hoạt_động+IF(Cân_nặng_mong_muốn="Duy trì",0,IF(Cân_nặng_mong_muốn="GIẢM",-500,IF(Cân_nặng_mong_muốn="Tăng",500))),""),"") -> 1740 | H25: =IFERROR(F25*(Hệ_số_hoạt_động),"") -> 2239 | I25: 499 | J25: 45513 | K25: =IFERROR(IF(_xlfn.SINGLE(Tiêu_chuẩn),J25/_xlfn.SINGLE(Calo_Pound),J25/_xlfn.SINGLE(Calo_Pound)/2.2),"") -> 13.0 | L25: =IFERROR(Cân_nặng_cần_tăng_giảm-K25,"") -> 2.00 | M25: =IFERROR(IF(B24<>"",L25/(Cân_nặng_cần_tăng_giảm),""),"") -> 13%
B26: 2022-08-29 | D26: 16 | E26: 147.9 | F26: =IFERROR(BMR_chạy,"") -> 1444 | G26: =IFERROR(IF(K25>0,F25*Hệ_số_hoạt_động+IF(Cân_nặng_mong_muốn="Duy trì",0,IF(Cân_nặng_mong_muốn="GIẢM",-500,IF(Cân_nặng_mong_muốn="Tăng",500))),""),"") -> 1739 | H26: =IFERROR(F26*(Hệ_số_hoạt_động),"") -> 2238 | I26: 499 | J26: 45014 | K26: =IFERROR(IF(_xlfn.SINGLE(Tiêu_chuẩn),J26/_xlfn.SINGLE(Calo_Pound),J26/_xlfn.SINGLE(Calo_Pound)/2.2),"") -> 12.9 | L26: =IFERROR(Cân_nặng_cần_tăng_giảm-K26,"") -> 2.14 | M26: =IFERROR(IF(B25<>"",L26/(Cân_nặng_cần_tăng_giảm),""),"") -> 14%
B27: 2022-08-30 | D27: 17 | E27: 147.7 | F27: =IFERROR(BMR_chạy,"") -> 1443 | G27: =IFERROR(IF(K26>0,F26*Hệ_số_hoạt_động+IF(Cân_nặng_mong_muốn="Duy trì",0,IF(Cân_nặng_mong_muốn="GIẢM",-500,IF(Cân_nặng_mong_muốn="Tăng",500))),""),"") -> 1738 | H27: =IFERROR(F27*(Hệ_số_hoạt_động),"") -> 2237 | I27: 499 | J27: 44515 | K27: =IFERROR(IF(_xlfn.SINGLE(Tiêu_chuẩn),J27/_xlfn.SINGLE(Calo_Pound),J27/_xlfn.SINGLE(Calo_Pound)/2.2),"") -> 12.7 | L27: =IFERROR(Cân_nặng_cần_tăng_giảm-K27,"") -> 2.28 | M27: =IFERROR(IF(B26<>"",L27/(Cân_nặng_cần_tăng_giảm),""),"") -> 15%
B28: 2022-08-31 | D28: 18 | E28: 147.6 | F28: =IFERROR(BMR_chạy,"") -> 1443 | G28: =IFERROR(IF(K27>0,F27*Hệ_số_hoạt_động+IF(Cân_nặng_mong_muốn="Duy trì",0,IF(Cân_nặng_mong_muốn="GIẢM",-500,IF(Cân_nặng_mong_muốn="Tăng",500))),""),"") -> 1737 | H28: =IFERROR(F28*(Hệ_số_hoạt_động),"") -> 2236 | I28: 499 | J28: 44016 | K28: =IFERROR(IF(_xlfn.SINGLE(Tiêu_chuẩn),J28/_xlfn.SINGLE(Calo_Pound),J28/_xlfn.SINGLE(Calo_Pound)/2.2),"") -> 12.6 | L28: =IFERROR(Cân_nặng_cần_tăng_giảm-K28,"") -> 2.42 | M28: =IFERROR(IF(B27<>"",L28/(Cân_nặng_cần_tăng_giảm),""),"") -> 16%
B29: 2022-09-01 | D29: 19 | E29: 147.4 | F29: =IFERROR(BMR_chạy,"") -> 1442 | G29: =IFERROR(IF(K28>0,F28*Hệ_số_hoạt_động+IF(Cân_nặng_mong_muốn="Duy trì",0,IF(Cân_nặng_mong_muốn="GIẢM",-500,IF(Cân_nặng_mong_muốn="Tăng",500))),""),"") -> 1736 | H29: =IFERROR(F29*(Hệ_số_hoạt_động),"") -> 2235 | I29: 499 | J29: 43517 | K29: =IFERROR(IF(_xlfn.SINGLE(Tiêu_chuẩn),J29/_xlfn.SINGLE(Calo_Pound),J29/_xlfn.SINGLE(Calo_Pound)/2.2),"") -> 12.4 | L29: =IFERROR(Cân_nặng_cần_tăng_giảm-K29,"") -> 2.57 | M29: =IFERROR(IF(B28<>"",L29/(Cân_nặng_cần_tăng_giảm),""),"") -> 17%
B30: 2022-09-02 | D30: 20 | E30: 147.3 | F30: =IFERROR(BMR_chạy,"") -> 1441 | G30: =IFERROR(IF(K29>0,F29*Hệ_số_hoạt_động+IF(Cân_nặng_mong_muốn="Duy trì",0,IF(Cân_nặng_mong_muốn="GIẢM",-500,IF(Cân_nặng_mong_muốn="Tăng",500))),""),"") -> 1735 | H30: =IFERROR(F30*(Hệ_số_hoạt_động),"") -> 2234 | I30: 499 | J30: 43018 | K30: =IFERROR(IF(_xlfn.SINGLE(Tiêu_chuẩn),J30/_xlfn.SINGLE(Calo_Pound),J30/_xlfn.SINGLE(Calo_Pound)/2.2),"") -> 12.3 | L30: =IFERROR(Cân_nặng_cần_tăng_giảm-K30,"") -> 2.71 | M30: =IFERROR(IF(B29<>"",L30/(Cân_nặng_cần_tăng_giảm),""),"") -> 18%
B31: 2022-09-03 | D31: 21 | E31: 147.1 | F31: =IFERROR(BMR_chạy,"") -> 1441 | G31: =IFERROR(IF(K30>0,F30*Hệ_số_hoạt_động+IF(Cân_nặng_mong_muốn="Duy trì",0,IF(Cân_nặng_mong_muốn="GIẢM",-500,IF(Cân_nặng_mong_muốn="Tăng",500))),""),"") -> 1734 | H31: =IFERROR(F31*(Hệ_số_hoạt_động),"") -> 2233 | I31: 499 | J31: 42519 | K31: =IFERROR(IF(_xlfn.SINGLE(Tiêu_chuẩn),J31/_xlfn.SINGLE(Calo_Pound),J31/_xlfn.SINGLE(Calo_Pound)/2.2),"") -> 12.1 | L31: =IFERROR(Cân_nặng_cần_tăng_giảm-K31,"") -> 2.85 | M31: =IFERROR(IF(B30<>"",L31/(Cân_nặng_cần_tăng_giảm),""),"") -> 19%
B32: 2022-09-04 | C32: 4 | D32: 22 | E32: 147.0 | F32: =IFERROR(BMR_chạy,"") -> 1440 | G32: =IFERROR(IF(K31>0,F31*Hệ_số_hoạt_động+IF(Cân_nặng_mong_muốn="Duy trì",0,IF(Cân_nặng_mong_muốn="GIẢM",-500,IF(Cân_nặng_mong_muốn="Tăng",500))),""),"") -> 1733 | H32: =IFERROR(F32*(Hệ_số_hoạt_động),"") -> 2232 | I32: 499 | J32: 42020 | K32: =IFERROR(IF(_xlfn.SINGLE(Tiêu_chuẩn),J32/_xlfn.SINGLE(Calo_Pound),J32/_xlfn.SINGLE(Calo_Pound)/2.2),"") -> 12.0 | L32: =IFERROR(Cân_nặng_cần_tăng_giảm-K32,"") -> 2.99 | M32: =IFERROR(IF(B31<>"",L32/(Cân_nặng_cần_tăng_giảm),""),"") -> 20%
B33: 2022-09-05 | D33: 23 | E33: 146.9 | F33: =IFERROR(BMR_chạy,"") -> 1440 | G33: =IFERROR(IF(K32>0,F32*Hệ_số_hoạt_động+IF(Cân_nặng_mong_muốn="Duy trì",0,IF(Cân_nặng_mong_muốn="GIẢM",-500,IF(Cân_nặng_mong_muốn="Tăng",500))),""),"") -> 1732 | H33: =IFERROR(F33*(Hệ_số_hoạt_động),"") -> 2231 | I33: 499 | J33: 41521 | K33: =IFERROR(IF(_xlfn.SINGLE(Tiêu_chuẩn),J33/_xlfn.SINGLE(Calo_Pound),J33/_xlfn.SINGLE(Calo_Pound)/2.2),"") -> 11.9 | L33: =IFERROR(Cân_nặng_cần_tăng_giảm-K33,"") -> 3.14 | M33: =IFERROR(IF(B32<>"",L33/(Cân_nặng_cần_tăng_giảm),""),"") -> 21%
B34: 2022-09-06 | D34: 24 | E34: 146.7 | F34: =IFERROR(BMR_chạy,"") -> 1439 | G34: =IFERROR(IF(K33>0,F33*Hệ_số_hoạt_động+IF(Cân_nặng_mong_muốn="Duy trì",0,IF(Cân_nặng_mong_muốn="GIẢM",-500,IF(Cân_nặng_mong_muốn="Tăng",500))),""),"") -> 1731 | H34: =IFERROR(F34*(Hệ_số_hoạt_động),"") -> 2230 | I34: 499 | J34: 41022 | K34: =IFERROR(IF(_xlfn.SINGLE(Tiêu_chuẩn),J34/_xlfn.SINGLE(Calo_Pound),J34/_xlfn.SINGLE(Calo_Pound)/2.2),"") -> 11.7 | L34: =IFERROR(Cân_nặng_cần_tăng_giảm-K34,"") -> 3.28 | M34: =IFERROR(IF(B33<>"",L34/(Cân_nặng_cần_tăng_giảm),""),"") -> 22%
B35: 2022-09-07 | D35: 25 | E35: 146.6 | F35: =IFERROR(BMR_chạy,"") -> 1438 | G35: =IFERROR(IF(K34>0,F34*Hệ_số_hoạt_động+IF(Cân_nặng_mong_muốn="Duy trì",0,IF(Cân_nặng_mong_muốn="GIẢM",-500,IF(Cân_nặng_mong_muốn="Tăng",500))),""),"") -> 1730 | H35: =IFERROR(F35*(Hệ_số_hoạt_động),"") -> 2229 | I35: 499 | J35: 40523 | K35: =IFERROR(IF(_xlfn.SINGLE(Tiêu_chuẩn),J35/_xlfn.SINGLE(Calo_Pound),J35/_xlfn.SINGLE(Calo_Pound)/2.2),"") -> 11.6 | L35: =IFERROR(Cân_nặng_cần_tăng_giảm-K35,"") -> 3.42 | M35: =IFERROR(IF(B34<>"",L35/(Cân_nặng_cần_tăng_giảm),""),"") -> 23%
B36: 2022-09-08 | D36: 26 | E36: 146.4 | F36: =IFERROR(BMR_chạy,"") -> 1438 | G36: =IFERROR(IF(K35>0,F35*Hệ_số_hoạt_động+IF(Cân_nặng_mong_muốn="Duy trì",0,IF(Cân_nặng_mong_muốn="GIẢM",-500,IF(Cân_nặng_mong_muốn="Tăng",500))),""),"") -> 1729 | H36: =IFERROR(F36*(Hệ_số_hoạt_động),"") -> 2228 | I36: 499 | J36: 40024 | K36: =IFERROR(IF(_xlfn.SINGLE(Tiêu_chuẩn),J36/_xlfn.SINGLE(Calo_Pound),J36/_xlfn.SINGLE(Calo_Pound)/2.2),"") -> 11.4 | L36: =IFERROR(Cân_nặng_cần_tăng_giảm-K36,"") -> 3.56 | M36: =IFERROR(IF(B35<>"",L36/(Cân_nặng_cần_tăng_giảm),""),"") -> 24%
B37: 2022-09-09 | D37: 27 | E37: 146.3 | F37: =IFERROR(BMR_chạy,"") -> 1437 | G37: =IFERROR(IF(K36>0,F36*Hệ_số_hoạt_động+IF(Cân_nặng_mong_muốn="Duy trì",0,IF(Cân_nặng_mong_muốn="GIẢM",-500,IF(Cân_nặng_mong_muốn="Tăng",500))),""),"") -> 1728 | H37: =IFERROR(F37*(Hệ_số_hoạt_động),"") -> 2227 | I37: 499 | J37: 39525 | K37: =IFERROR(IF(_xlfn.SINGLE(Tiêu_chuẩn),J37/_xlfn.SINGLE(Calo_Pound),J37/_xlfn.SINGLE(Calo_Pound)/2.2),"") -> 11.3 | L37: =IFERROR(Cân_nặng_cần_tăng_giảm-K37,"") -> 3.71 | M37: =IFERROR(IF(B36<>"",L37/(Cân_nặng_cần_tăng_giảm),""),"") -> 25%
B38: 2022-09-10 | D38: 28 | E38: 146.1 | F38: =IFERROR(BMR_chạy,"") -> 1436 | G38: =IFERROR(IF(K37>0,F37*Hệ_số_hoạt_động+IF(Cân_nặng_mong_muốn="Duy trì",0,IF(Cân_nặng_mong_muốn="GIẢM",-500,IF(Cân_nặng_mong_muốn="Tăng",500))),""),"") -> 1727 | H38: =IFERROR(F38*(Hệ_số_hoạt_động),"") -> 2227 | I38: 499 | J38: 39026 | K38: =IFERROR(IF(_xlfn.SINGLE(Tiêu_chuẩn),J38/_xlfn.SINGLE(Calo_Pound),J38/_xlfn.SINGLE(Calo_Pound)/2.2),"") -> 11.2 | L38: =IFERROR(Cân_nặng_cần_tăng_giảm-K38,"") -> 3.85 | M38: =IFERROR(IF(B37<>"",L38/(Cân_nặng_cần_tăng_giảm),""),"") -> 26%
B39: 2022-09-11 | C39: 5 | D39: 29 | E39: 146.0 | F39: =IFERROR(BMR_chạy,"") -> 1436 | G39: =IFERROR(IF(K38>0,F38*Hệ_số_hoạt_động+IF(Cân_nặng_mong_muốn="Duy trì",0,IF(Cân_nặng_mong_muốn="GIẢM",-500,IF(Cân_nặng_mong_muốn="Tăng",500))),""),"") -> 1727 | H39: =IFERROR(F39*(Hệ_số_hoạt_động),"") -> 2226 | I39: 499 | J39: 38527 | K39: =IFERROR(IF(_xlfn.SINGLE(Tiêu_chuẩn),J39/_xlfn.SINGLE(Calo_Pound),J39/_xlfn.SINGLE(Calo_Pound)/2.2),"") -> 11.0 | L39: =IFERROR(Cân_nặng_cần_tăng_giảm-K39,"") -> 3.99 | M39: =IFERROR(IF(B38<>"",L39/(Cân_nặng_cần_tăng_giảm),""),"") -> 27%
B40: 2022-09-12 | D40: 30 | E40: 145.9 | F40: =IFERROR(BMR_chạy,"") -> 1435 | G40: =IFERROR(IF(K39>0,F39*Hệ_số_hoạt_động+IF(Cân_nặng_mong_muốn="Duy trì",0,IF(Cân_nặng_mong_muốn="GIẢM",-500,IF(Cân_nặng_mong_muốn="Tăng",500))),""),"") -> 1726 | H40: =IFERROR(F40*(Hệ_số_hoạt_động),"") -> 2225 | I40: 499 | J40: 38028 | K40: =IFERROR(IF(_xlfn.SINGLE(Tiêu_chuẩn),J40/_xlfn.SINGLE(Calo_Pound),J40/_xlfn.SINGLE(Calo_Pound)/2.2),"") -> 10.9 | L40: =IFERROR(Cân_nặng_cần_tăng_giảm-K40,"") -> 4.13 | M40: =IFERROR(IF(B39<>"",L40/(Cân_nặng_cần_tăng_giảm),""),"") -> 28%
B41: 2022-09-13 | D41: 31 | E41: 145.7 | F41: =IFERROR(BMR_chạy,"") -> 1435 | G41: =IFERROR(IF(K40>0,F40*Hệ_số_hoạt_động+IF(Cân_nặng_mong_muốn="Duy trì",0,IF(Cân_nặng_mong_muốn="GIẢM",-500,IF(Cân_nặng_mong_muốn="Tăng",500))),""),"") -> 1725 | H41: =IFERROR(F41*(Hệ_số_hoạt_động),"") -> 2224 | I41: 499 | J41: 37529 | K41: =IFERROR(IF(_xlfn.SINGLE(Tiêu_chuẩn),J41/_xlfn.SINGLE(Calo_Pound),J41/_xlfn.SINGLE(Calo_Pound)/2.2),"") -> 10.7 | L41: =IFERROR(Cân_nặng_cần_tăng_giảm-K41,"") -> 4.28 | M41: =IFERROR(IF(B40<>"",L41/(Cân_nặng_cần_tăng_giảm),""),"") -> 29%
B42: 2022-09-14 | D42: 32 | E42: 145.6 | F42: =IFERROR(BMR_chạy,"") -> 1434 | G42: =IFERROR(IF(K41>0,F41*Hệ_số_hoạt_động+IF(Cân_nặng_mong_muốn="Duy trì",0,IF(Cân_nặng_mong_muốn="GIẢM",-500,IF(Cân_nặng_mong_muốn="Tăng",500))),""),"") -> 1724 | H42: =IFERROR(F42*(Hệ_số_hoạt_động),"") -> 2223 | I42: 499 | J42: 37030 | K42: =IFERROR(IF(_xlfn.SINGLE(Tiêu_chuẩn),J42/_xlfn.SINGLE(Calo_Pound),J42/_xlfn.SINGLE(Calo_Pound)/2.2),"") -> 10.6 | L42: =IFERROR(Cân_nặng_cần_tăng_giảm-K42,"") -> 4.42 | M42: =IFERROR(IF(B41<>"",L42/(Cân_nặng_cần_tăng_giảm),""),"") -> 29%
B43: 2022-09-15 | D43: 33 | E43: 145.4 | F43: =IFERROR(BMR_chạy,"") -> 1433 | G43: =IFERROR(IF(K42>0,F42*Hệ_số_hoạt_động+IF(Cân_nặng_mong_muốn="Duy trì",0,IF(Cân_nặng_mong_muốn="GIẢM",-500,IF(Cân_nặng_mong_muốn="Tăng",500))),""),"") -> 1723 | H43: =IFERROR(F43*(Hệ_số_hoạt_động),"") -> 2222 | I43: 499 | J43: 36531 | K43: =IFERROR(IF(_xlfn.SINGLE(Tiêu_chuẩn),J43/_xlfn.SINGLE(Calo_Pound),J43/_xlfn.SINGLE(Calo_Pound)/2.2),"") -> 10.4 | L43: =IFERROR(Cân_nặng_cần_tăng_giảm-K43,"") -> 4.56 | M43: =IFERROR(IF(B42<>"",L43/(Cân_nặng_cần_tăng_giảm),""),"") -> 30%
B44: 2022-09-16 | D44: 34 | E44: 145.3 | F44: =IFERROR(BMR_chạy,"") -> 1433 | G44: =IFERROR(IF(K43>0,F43*Hệ_số_hoạt_động+IF(Cân_nặng_mong_muốn="Duy trì",0,IF(Cân_nặng_mong_muốn="GIẢM",-500,IF(Cân_nặng_mong_muốn="Tăng",500))),""),"") -> 1722 | H44: =IFERROR(F44*(Hệ_số_hoạt_động),"") -> 2221 | I44: 499 | J44: 36032 | K44: =IFERROR(IF(_xlfn.SINGLE(Tiêu_chuẩn),J44/_xlfn.SINGLE(Calo_Pound),J44/_xlfn.SINGLE(Calo_Pound)/2.2),"") -> 10.3 | L44: =IFERROR(Cân_nặng_cần_tăng_giảm-K44,"") -> 4.71 | M44: =IFERROR(IF(B43<>"",L44/(Cân_nặng_cần_tăng_giảm),""),"") -> 31%
B45: 2022-09-17 | D45: 35 | E45: 145.2 | F45: =IFERROR(BMR_chạy,"") -> 1432 | G45: =IFERROR(IF(K44>0,F44*Hệ_số_hoạt_động+IF(Cân_nặng_mong_muốn="Duy trì",0,IF(Cân_nặng_mong_muốn="GIẢM",-500,IF(Cân_nặng_mong_muốn="Tăng",500))),""),"") -> 1721 | H45: =IFERROR(F45*(Hệ_số_hoạt_động),"") -> 2220 | I45: 499 | J45: 35533 | K45: =IFERROR(IF(_xlfn.SINGLE(Tiêu_chuẩn),J45/_xlfn.SINGLE(Calo_Pound),J45/_xlfn.SINGLE(Calo_Pound)/2.2),"") -> 10.2 | L45: =IFERROR(Cân_nặng_cần_tăng_giảm-K45,"") -> 4.85 | M45: =IFERROR(IF(B44<>"",L45/(Cân_nặng_cần_tăng_giảm),""),"") -> 32%
B46: 2022-09-18 | C46: 6 | D46: 36 | E46: 145.0 | F46: =IFERROR(BMR_chạy,"") -> 1431 | G46: =IFERROR(IF(K45>0,F45*Hệ_số_hoạt_động+IF(Cân_nặng_mong_muốn="Duy trì",0,IF(Cân_nặng_mong_muốn="GIẢM",-500,IF(Cân_nặng_mong_muốn="Tăng",500))),""),"") -> 1720 | H46: =IFERROR(F46*(Hệ_số_hoạt_động),"") -> 2219 | I46: 499 | J46: 35034 | K46: =IFERROR(IF(_xlfn.SINGLE(Tiêu_chuẩn),J46/_xlfn.SINGLE(Calo_Pound),J46/_xlfn.SINGLE(Calo_Pound)/2.2),"") -> 10.0 | L46: =IFERROR(Cân_nặng_cần_tăng_giảm-K46,"") -> 4.99 | M46: =IFERROR(IF(B45<>"",L46/(Cân_nặng_cần_tăng_giảm),""),"") -> 33%
B47: 2022-09-19 | D47: 37 | E47: 144.9 | F47: =IFERROR(BMR_chạy,"") -> 1431 | G47: =IFERROR(IF(K46>0,F46*Hệ_số_hoạt_động+IF(Cân_nặng_mong_muốn="Duy trì",0,IF(Cân_nặng_mong_muốn="GIẢM",-500,IF(Cân_nặng_mong_muốn="Tăng",500))),""),"") -> 1719 | H47: =IFERROR(F47*(Hệ_số_hoạt_động),"") -> 2218 | I47: 499 | J47: 34535 | K47: =IFERROR(IF(_xlfn.SINGLE(Tiêu_chuẩn),J47/_xlfn.SINGLE(Calo_Pound),J47/_xlfn.SINGLE(Calo_Pound)/2.2),"") -> 9.9 | L47: =IFERROR(Cân_nặng_cần_tăng_giảm-K47,"") -> 5.13 | M47: =IFERROR(IF(B46<>"",L47/(Cân_nặng_cần_tăng_giảm),""),"") -> 34%
B48: 2022-09-20 | D48: 38 | E48: 144.7 | F48: =IFERROR(BMR_chạy,"") -> 1430 | G48: =IFERROR(IF(K47>0,F47*Hệ_số_hoạt_động+IF(Cân_nặng_mong_muốn="Duy trì",0,IF(Cân_nặng_mong_muốn="GIẢM",-500,IF(Cân_nặng_mong_muốn="Tăng",500))),""),"") -> 1718 | H48: =IFERROR(F48*(Hệ_số_hoạt_động),"") -> 2217 | I48: 499 | J48: 34036 | K48: =IFERROR(IF(_xlfn.SINGLE(Tiêu_chuẩn),J48/_xlfn.SINGLE(Calo_Pound),J48/_xlfn.SINGLE(Calo_Pound)/2.2),"") -> 9.7 | L48: =IFERROR(Cân_nặng_cần_tăng_giảm-K48,"") -> 5.28 | M48: =IFERROR(IF(B47<>"",L48/(Cân_nặng_cần_tăng_giảm),""),"") -> 35%
B49: 2022-09-21 | D49: 39 | E49: 144.6 | F49: =IFERROR(BMR_chạy,"") -> 1430 | G49: =IFERROR(IF(K48>0,F48*Hệ_số_hoạt_động+IF(Cân_nặng_mong_muốn="Duy trì",0,IF(Cân_nặng_mong_muốn="GIẢM",-500,IF(Cân_nặng_mong_muốn="Tăng",500))),""),"") -> 1717 | H49: =IFERROR(F49*(Hệ_số_hoạt_động),"") -> 2216 | I49: 499 | J49: 33537 | K49: =IFERROR(IF(_xlfn.SINGLE(Tiêu_chuẩn),J49/_xlfn.SINGLE(Calo_Pound),J49/_xlfn.SINGLE(Calo_Pound)/2.2),"") -> 9.6 | L49: =IFERROR(Cân_nặng_cần_tăng_giảm-K49,"") -> 5.42 | M49: =IFERROR(IF(B48<>"",L49/(Cân_nặng_cần_tăng_giảm),""),"") -> 36%
B50: 2022-09-22 | D50: 40 | E50: 144.4 | F50: =IFERROR(BMR_chạy,"") -> 1429 | G50: =IFERROR(IF(K49>0,F49*Hệ_số_hoạt_động+IF(Cân_nặng_mong_muốn="Duy trì",0,IF(Cân_nặng_mong_muốn="GIẢM",-500,IF(Cân_nặng_mong_muốn="Tăng",500))),""),"") -> 1716 | H50: =IFERROR(F50*(Hệ_số_hoạt_động),"") -> 2215 | I50: 499 | J50: 33037 | K50: =IFERROR(IF(_xlfn.SINGLE(Tiêu_chuẩn),J50/_xlfn.SINGLE(Calo_Pound),J50/_xlfn.SINGLE(Calo_Pound)/2.2),"") -> 9.4 | L50: =IFERROR(Cân_nặng_cần_tăng_giảm-K50,"") -> 5.56 | M50: =IFERROR(IF(B49<>"",L50/(Cân_nặng_cần_tăng_giảm),""),"") -> 37%
B51: 2022-09-23 | D51: 41 | E51: 144.3 | F51: =IFERROR(BMR_chạy,"") -> 1428 | G51: =IFERROR(IF(K50>0,F50*Hệ_số_hoạt_động+IF(Cân_nặng_mong_muốn="Duy trì",0,IF(Cân_nặng_mong_muốn="GIẢM",-500,IF(Cân_nặng_mong_muốn="Tăng",500))),""),"") -> 1715 | H51: =IFERROR(F51*(Hệ_số_hoạt_động),"") -> 2214 | I51: 499 | J51: 32538 | K51: =IFERROR(IF(_xlfn.SINGLE(Tiêu_chuẩn),J51/_xlfn.SINGLE(Calo_Pound),J51/_xlfn.SINGLE(Calo_Pound)/2.2),"") -> 9.3 | L51: =IFERROR(Cân_nặng_cần_tăng_giảm-K51,"") -> 5.70 | M51: =IFERROR(IF(B50<>"",L51/(Cân_nặng_cần_tăng_giảm),""),"") -> 38%
B52: 2022-09-24 | D52: 42 | E52: 144.2 | F52: =IFERROR(BMR_chạy,"") -> 1428 | G52: =IFERROR(IF(K51>0,F51*Hệ_số_hoạt_động+IF(Cân_nặng_mong_muốn="Duy trì",0,IF(Cân_nặng_mong_muốn="GIẢM",-500,IF(Cân_nặng_mong_muốn="Tăng",500))),""),"") -> 1714 | H52: =IFERROR(F52*(Hệ_số_hoạt_động),"") -> 2213 | I52: 499 | J52: 32039 | K52: =IFERROR(IF(_xlfn.SINGLE(Tiêu_chuẩn),J52/_xlfn.SINGLE(Calo_Pound),J52/_xlfn.SINGLE(Calo_Pound)/2.2),"") -> 9.2 | L52: =IFERROR(Cân_nặng_cần_tăng_giảm-K52,"") -> 5.85 | M52: =IFERROR(IF(B51<>"",L52/(Cân_nặng_cần_tăng_giảm),""),"") -> 39%
B53: 2022-09-25 | C53: 7 | D53: 43 | E53: 144.0 | F53: =IFERROR(BMR_chạy,"") -> 1427 | G53: =IFERROR(IF(K52>0,F52*Hệ_số_hoạt_động+IF(Cân_nặng_mong_muốn="Duy trì",0,IF(Cân_nặng_mong_muốn="GIẢM",-500,IF(Cân_nặng_mong_muốn="Tăng",500))),""),"") -> 1713 | H53: =IFERROR(F53*(Hệ_số_hoạt_động),"") -> 2212 | I53: 499 | J53: 31540 | K53: =IFERROR(IF(_xlfn.SINGLE(Tiêu_chuẩn),J53/_xlfn.SINGLE(Calo_Pound),J53/_xlfn.SINGLE(Calo_Pound)/2.2),"") -> 9.0 | L53: =IFERROR(Cân_nặng_cần_tăng_giảm-K53,"") -> 5.99 | M53: =IFERROR(IF(B52<>"",L53/(Cân_nặng_cần_tăng_giảm),""),"") -> 40%
B54: 2022-09-26 | D54: 44 | E54: 143.9 | F54: =IFERROR(BMR_chạy,"") -> 1427 | G54: =IFERROR(IF(K53>0,F53*Hệ_số_hoạt_động+IF(Cân_nặng_mong_muốn="Duy trì",0,IF(Cân_nặng_mong_muốn="GIẢM",-500,IF(Cân_nặng_mong_muốn="Tăng",500))),""),"") -> 1712 | H54: =IFERROR(F54*(Hệ_số_hoạt_động),"") -> 2211 | I54: 499 | J54: 31041 | K54: =IFERROR(IF(_xlfn.SINGLE(Tiêu_chuẩn),J54/_xlfn.SINGLE(Calo_Pound),J54/_xlfn.SINGLE(Calo_Pound)/2.2),"") -> 8.9 | L54: =IFERROR(Cân_nặng_cần_tăng_giảm-K54,"") -> 6.13 | M54: =IFERROR(IF(B53<>"",L54/(Cân_nặng_cần_tăng_giảm),""),"") -> 41%
B55: 2022-09-27 | D55: 45 | E55: 143.7 | F55: =IFERROR(BMR_chạy,"") -> 1426 | G55: =IFERROR(IF(K54>0,F54*Hệ_số_hoạt_động+IF(Cân_nặng_mong_muốn="Duy trì",0,IF(Cân_nặng_mong_muốn="GIẢM",-500,IF(Cân_nặng_mong_muốn="Tăng",500))),""),"") -> 1711 | H55: =IFERROR(F55*(Hệ_số_hoạt_động),"") -> 2210 | I55: 499 | J55: 30542 | K55: =IFERROR(IF(_xlfn.SINGLE(Tiêu_chuẩn),J55/_xlfn.SINGLE(Calo_Pound),J55/_xlfn.SINGLE(Calo_Pound)/2.2),"") -> 8.7 | L55: =IFERROR(Cân_nặng_cần_tăng_giảm-K55,"") -> 6.27 | M55: =IFERROR(IF(B54<>"",L55/(Cân_nặng_cần_tăng_giảm),""),"") -> 42%
B56: 2022-09-28 | D56: 46 | E56: 143.6 | F56: =IFERROR(BMR_chạy,"") -> 1425 | G56: =IFERROR(IF(K55>0,F55*Hệ_số_hoạt_động+IF(Cân_nặng_mong_muốn="Duy trì",0,IF(Cân_nặng_mong_muốn="GIẢM",-500,IF(Cân_nặng_mong_muốn="Tăng",500))),""),"") -> 1710 | H56: =IFERROR(F56*(Hệ_số_hoạt_động),"") -> 2209 | I56: 499 | J56: 30043 | K56: =IFERROR(IF(_xlfn.SINGLE(Tiêu_chuẩn),J56/_xlfn.SINGLE(Calo_Pound),J56/_xlfn.SINGLE(Calo_Pound)/2.2),"") -> 8.6 | L56: =IFERROR(Cân_nặng_cần_tăng_giảm-K56,"") -> 6.42 | M56: =IFERROR(IF(B55<>"",L56/(Cân_nặng_cần_tăng_giảm),""),"") -> 43%
B57: 2022-09-29 | D57: 47 | E57: 143.4 | F57: =IFERROR(BMR_chạy,"") -> 1425 | G57: =IFERROR(IF(K56>0,F56*Hệ_số_hoạt_động+IF(Cân_nặng_mong_muốn="Duy trì",0,IF(Cân_nặng_mong_muốn="GIẢM",-500,IF(Cân_nặng_mong_muốn="Tăng",500))),""),"") -> 1709 | H57: =IFERROR(F57*(Hệ_số_hoạt_động),"") -> 2208 | I57: 499 | J57: 29544 | K57: =IFERROR(IF(_xlfn.SINGLE(Tiêu_chuẩn),J57/_xlfn.SINGLE(Calo_Pound),J57/_xlfn.SINGLE(Calo_Pound)/2.2),"") -> 8.4 | L57: =IFERROR(Cân_nặng_cần_tăng_giảm-K57,"") -> 6.56 | M57: =IFERROR(IF(B56<>"",L57/(Cân_nặng_cần_tăng_giảm),""),"") -> 44%
B58: 2022-09-30 | D58: 48 | E58: 143.3 | F58: =IFERROR(BMR_chạy,"") -> 1424 | G58: =IFERROR(IF(K57>0,F57*Hệ_số_hoạt_động+IF(Cân_nặng_mong_muốn="Duy trì",0,IF(Cân_nặng_mong_muốn="GIẢM",-500,IF(Cân_nặng_mong_muốn="Tăng",500))),""),"") -> 1708 | H58: =IFERROR(F58*(Hệ_số_hoạt_động),"") -> 2207 | I58: 499 | J58: 29045 | K58: =IFERROR(IF(_xlfn.SINGLE(Tiêu_chuẩn),J58/_xlfn.SINGLE(Calo_Pound),J58/_xlfn.SINGLE(Calo_Pound)/2.2),"") -> 8.3 | L58: =IFERROR(Cân_nặng_cần_tăng_giảm-K58,"") -> 6.70 | M58: =IFERROR(IF(B57<>"",L58/(Cân_nặng_cần_tăng_giảm),""),"") -> 45%
B59: 2022-10-01 | D59: 49 | E59: 143.2 | F59: =IFERROR(BMR_chạy,"") -> 1423 | G59: =IFERROR(IF(K58>0,F58*Hệ_số_hoạt_động+IF(Cân_nặng_mong_muốn="Duy trì",0,IF(Cân_nặng_mong_muốn="GIẢM",-500,IF(Cân_nặng_mong_muốn="Tăng",500))),""),"") -> 1707 | H59: =IFERROR(F59*(Hệ_số_hoạt_động),"") -> 2206 | I59: 499 | J59: 28546 | K59: =IFERROR(IF(_xlfn.SINGLE(Tiêu_chuẩn),J59/_xlfn.SINGLE(Calo_Pound),J59/_xlfn.SINGLE(Calo_Pound)/2.2),"") -> 8.2 | L59: =IFERROR(Cân_nặng_cần_tăng_giảm-K59,"") -> 6.84 | M59: =IFERROR(IF(B58<>"",L59/(Cân_nặng_cần_tăng_giảm),""),"") -> 46%
B60: 2022-10-02 | C60: 8 | D60: 50 | E60: 143.0 | F60: =IFERROR(BMR_chạy,"") -> 1423 | G60: =IFERROR(IF(K59>0,F59*Hệ_số_hoạt_động+IF(Cân_nặng_mong_muốn="Duy trì",0,IF(Cân_nặng_mong_muốn="GIẢM",-500,IF(Cân_nặng_mong_muốn="Tăng",500))),""),"") -> 1706 | H60: =IFERROR(F60*(Hệ_số_hoạt_động),"") -> 2205 | I60: 499 | J60: 28047 | K60: =IFERROR(IF(_xlfn.SINGLE(Tiêu_chuẩn),J60/_xlfn.SINGLE(Calo_Pound),J60/_xlfn.SINGLE(Calo_Pound)/2.2),"") -> 8.0 | L60: =IFERROR(Cân_nặng_cần_tăng_giảm-K60,"") -> 6.99 | M60: =IFERROR(IF(B59<>"",L60/(Cân_nặng_cần_tăng_giảm),""),"") -> 47%
B61: 2022-10-03 | D61: 51 | E61: 142.9 | F61: =IFERROR(BMR_chạy,"") -> 1422 | G61: =IFERROR(IF(K60>0,F60*Hệ_số_hoạt_động+IF(Cân_nặng_mong_muốn="Duy trì",0,IF(Cân_nặng_mong_muốn="GIẢM",-500,IF(Cân_nặng_mong_muốn="Tăng",500))),""),"") -> 1705 | H61: =IFERROR(F61*(Hệ_số_hoạt_động),"") -> 2204 | I61: 499 | J61: 27548 | K61: =IFERROR(IF(_xlfn.SINGLE(Tiêu_chuẩn),J61/_xlfn.SINGLE(Calo_Pound),J61/_xlfn.SINGLE(Calo_Pound)/2.2),"") -> 7.9 | L61: =IFERROR(Cân_nặng_cần_tăng_giảm-K61,"") -> 7.13 | M61: =IFERROR(IF(B60<>"",L61/(Cân_nặng_cần_tăng_giảm),""),"") -> 48%
B62: 2022-10-04 | D62: 52 | E62: 142.7 | F62: =IFERROR(BMR_chạy,"") -> 1422 | G62: =IFERROR(IF(K61>0,F61*Hệ_số_hoạt_động+IF(Cân_nặng_mong_muốn="Duy trì",0,IF(Cân_nặng_mong_muốn="GIẢM",-500,IF(Cân_nặng_mong_muốn="Tăng",500))),""),"") -> 1704 | H62: =IFERROR(F62*(Hệ_số_hoạt_động),"") -> 2203 | I62: 499 | J62: 27049 | K62: =IFERROR(IF(_xlfn.SINGLE(Tiêu_chuẩn),J62/_xlfn.SINGLE(Calo_Pound),J62/_xlfn.SINGLE(Calo_Pound)/2.2),"") -> 7.7 | L62: =IFERROR(Cân_nặng_cần_tăng_giảm-K62,"") -> 7.27 | M62: =IFERROR(IF(B61<>"",L62/(Cân_nặng_cần_tăng_giảm),""),"") -> 48%
B63: 2022-10-05 | D63: 53 | E63: 142.6 | F63: =IFERROR(BMR_chạy,"") -> 1421 | G63: =IFERROR(IF(K62>0,F62*Hệ_số_hoạt_động+IF(Cân_nặng_mong_muốn="Duy trì",0,IF(Cân_nặng_mong_muốn="GIẢM",-500,IF(Cân_nặng_mong_muốn="Tăng",500))),""),"") -> 1703 | H63: =IFERROR(F63*(Hệ_số_hoạt_động),"") -> 2202 | I63: 499 | J63: 26550 | K63: =IFERROR(IF(_xlfn.SINGLE(Tiêu_chuẩn),J63/_xlfn.SINGLE(Calo_Pound),J63/_xlfn.SINGLE(Calo_Pound)/2.2),"") -> 7.6 | L63: =IFERROR(Cân_nặng_cần_tăng_giảm-K63,"") -> 7.41 | M63: =IFERROR(IF(B62<>"",L63/(Cân_nặng_cần_tăng_giảm),""),"") -> 49%
B64: 2022-10-06 | D64: 54 | E64: 142.4 | F64: =IFERROR(BMR_chạy,"") -> 1420 | G64: =IFERROR(IF(K63>0,F63*Hệ_số_hoạt_động+IF(Cân_nặng_mong_muốn="Duy trì",0,IF(Cân_nặng_mong_muốn="GIẢM",-500,IF(Cân_nặng_mong_muốn="Tăng",500))),""),"") -> 1702 | H64: =IFERROR(F64*(Hệ_số_hoạt_động),"") -> 2202 | I64: 499 | J64: 26051 | K64: =IFERROR(IF(_xlfn.SINGLE(Tiêu_chuẩn),J64/_xlfn.SINGLE(Calo_Pound),J64/_xlfn.SINGLE(Calo_Pound)/2.2),"") -> 7.4 | L64: =IFERROR(Cân_nặng_cần_tăng_giảm-K64,"") -> 7.56 | M64: =IFERROR(IF(B63<>"",L64/(Cân_nặng_cần_tăng_giảm),""),"") -> 50%
B65: 2022-10-07 | D65: 55 | E65: 142.3 | F65: =IFERROR(BMR_chạy,"") -> 1420 | G65: =IFERROR(IF(K64>0,F64*Hệ_số_hoạt_động+IF(Cân_nặng_mong_muốn="Duy trì",0,IF(Cân_nặng_mong_muốn="GIẢM",-500,IF(Cân_nặng_mong_muốn="Tăng",500))),""),"") -> 1702 | H65: =IFERROR(F65*(Hệ_số_hoạt_động),"") -> 2201 | I65: 499 | J65: 25552 | K65: =IFERROR(IF(_xlfn.SINGLE(Tiêu_chuẩn),J65/_xlfn.SINGLE(Calo_Pound),J65/_xlfn.SINGLE(Calo_Pound)/2.2),"") -> 7.3 | L65: =IFERROR(Cân_nặng_cần_tăng_giảm-K65,"") -> 7.70 | M65: =IFERROR(IF(B64<>"",L65/(Cân_nặng_cần_tăng_giảm),""),"") -> 51%
B66: 2022-10-08 | D66: 56 | E66: 142.2 | F66: =IFERROR(BMR_chạy,"") -> 1419 | G66: =IFERROR(IF(K65>0,F65*Hệ_số_hoạt_động+IF(Cân_nặng_mong_muốn="Duy trì",0,IF(Cân_nặng_mong_muốn="GIẢM",-500,IF(Cân_nặng_mong_muốn="Tăng",500))),""),"") -> 1701 | H66: =IFERROR(F66*(Hệ_số_hoạt_động),"") -> 2200 | I66: 499 | J66: 25053 | K66: =IFERROR(IF(_xlfn.SINGLE(Tiêu_chuẩn),J66/_xlfn.SINGLE(Calo_Pound),J66/_xlfn.SINGLE(Calo_Pound)/2.2),"") -> 7.2 | L66: =IFERROR(Cân_nặng_cần_tăng_giảm-K66,"") -> 7.84 | M66: =IFERROR(IF(B65<>"",L66/(Cân_nặng_cần_tăng_giảm),""),"") -> 52%
B67: 2022-10-09 | C67: 9 | D67: 57 | E67: 142.0 | F67: =IFERROR(BMR_chạy,"") -> 1418 | G67: =IFERROR(IF(K66>0,F66*Hệ_số_hoạt_động+IF(Cân_nặng_mong_muốn="Duy trì",0,IF(Cân_nặng_mong_muốn="GIẢM",-500,IF(Cân_nặng_mong_muốn="Tăng",500))),""),"") -> 1700 | H67: =IFERROR(F67*(Hệ_số_hoạt_động),"") -> 2199 | I67: 499 | J67: 24554 | K67: =IFERROR(IF(_xlfn.SINGLE(Tiêu_chuẩn),J67/_xlfn.SINGLE(Calo_Pound),J67/_xlfn.SINGLE(Calo_Pound)/2.2),"") -> 7.0 | L67: =IFERROR(Cân_nặng_cần_tăng_giảm-K67,"") -> 7.98 | M67: =IFERROR(IF(B66<>"",L67/(Cân_nặng_cần_tăng_giảm),""),"") -> 53%
B68: 2022-10-10 | D68: 58 | E68: 141.9 | F68: =IFERROR(BMR_chạy,"") -> 1418 | G68: =IFERROR(IF(K67>0,F67*Hệ_số_hoạt_động+IF(Cân_nặng_mong_muốn="Duy trì",0,IF(Cân_nặng_mong_muốn="GIẢM",-500,IF(Cân_nặng_mong_muốn="Tăng",500))),""),"") -> 1699 | H68: =IFERROR(F68*(Hệ_số_hoạt_động),"") -> 2198 | I68: 499 | J68: 24055 | K68: =IFERROR(IF(_xlfn.SINGLE(Tiêu_chuẩn),J68/_xlfn.SINGLE(Calo_Pound),J68/_xlfn.SINGLE(Calo_Pound)/2.2),"") -> 6.9 | L68: =IFERROR(Cân_nặng_cần_tăng_giảm-K68,"") -> 8.13 | M68: =IFERROR(IF(B67<>"",L68/(Cân_nặng_cần_tăng_giảm),""),"") -> 54%
B69: 2022-10-11 | D69: 59 | E69: 141.7 | F69: =IFERROR(BMR_chạy,"") -> 1417 | G69: =IFERROR(IF(K68>0,F68*Hệ_số_hoạt_động+IF(Cân_nặng_mong_muốn="Duy trì",0,IF(Cân_nặng_mong_muốn="GIẢM",-500,IF(Cân_nặng_mong_muốn="Tăng",500))),""),"") -> 1698 | H69: =IFERROR(F69*(Hệ_số_hoạt_động),"") -> 2197 | I69: 499 | J69: 23556 | K69: =IFERROR(IF(_xlfn.SINGLE(Tiêu_chuẩn),J69/_xlfn.SINGLE(Calo_Pound),J69/_xlfn.SINGLE(Calo_Pound)/2.2),"") -> 6.7 | L69: =IFERROR(Cân_nặng_cần_tăng_giảm-K69,"") -> 8.27 | M69: =IFERROR(IF(B68<>"",L69/(Cân_nặng_cần_tăng_giảm),""),"") -> 55%
B70: 2022-10-12 | D70: 60 | E70: 141.6 | F70: =IFERROR(BMR_chạy,"") -> 1417 | G70: =IFERROR(IF(K69>0,F69*Hệ_số_hoạt_động+IF(Cân_nặng_mong_muốn="Duy trì",0,IF(Cân_nặng_mong_muốn="GIẢM",-500,IF(Cân_nặng_mong_muốn="Tăng",500))),""),"") -> 1697 | H70: =IFERROR(F70*(Hệ_số_hoạt_động),"") -> 2196 | I70: 499 | J70: 23057 | K70: =IFERROR(IF(_xlfn.SINGLE(Tiêu_chuẩn),J70/_xlfn.SINGLE(Calo_Pound),J70/_xlfn.SINGLE(Calo_Pound)/2.2),"") -> 6.6 | L70: =IFERROR(Cân_nặng_cần_tăng_giảm-K70,"") -> 8.41 | M70: =IFERROR(IF(B69<>"",L70/(Cân_nặng_cần_tăng_giảm),""),"") -> 56%
B71: 2022-10-13 | D71: 61 | E71: 141.4 | F71: =IFERROR(BMR_chạy,"") -> 1416 | G71: =IFERROR(IF(K70>0,F70*Hệ_số_hoạt_động+IF(Cân_nặng_mong_muốn="Duy trì",0,IF(Cân_nặng_mong_muốn="GIẢM",-500,IF(Cân_nặng_mong_muốn="Tăng",500))),""),"") -> 1696 | H71: =IFERROR(F71*(Hệ_số_hoạt_động),"") -> 2195 | I71: 499 | J71: 22558 | K71: =IFERROR(IF(_xlfn.SINGLE(Tiêu_chuẩn),J71/_xlfn.SINGLE(Calo_Pound),J71/_xlfn.SINGLE(Calo_Pound)/2.2),"") -> 6.4 | L71: =IFERROR(Cân_nặng_cần_tăng_giảm-K71,"") -> 8.55 | M71: =IFERROR(IF(B70<>"",L71/(Cân_nặng_cần_tăng_giảm),""),"") -> 57%
B72: 2022-10-14 | D72: 62 | E72: 141.3 | F72: =IFERROR(BMR_chạy,"") -> 1415 | G72: =IFERROR(IF(K71>0,F71*Hệ_số_hoạt_động+IF(Cân_nặng_mong_muốn="Duy trì",0,IF(Cân_nặng_mong_muốn="GIẢM",-500,IF(Cân_nặng_mong_muốn="Tăng",500))),""),"") -> 1695 | H72: =IFERROR(F72*(Hệ_số_hoạt_động),"") -> 2194 | I72: 499 | J72: 22059 | K72: =IFERROR(IF(_xlfn.SINGLE(Tiêu_chuẩn),J72/_xlfn.SINGLE(Calo_Pound),J72/_xlfn.SINGLE(Calo_Pound)/2.2),"") -> 6.3 | L72: =IFERROR(Cân_nặng_cần_tăng_giảm-K72,"") -> 8.70 | M72: =IFERROR(IF(B71<>"",L72/(Cân_nặng_cần_tăng_giảm),""),"") -> 58%
B73: 2022-10-15 | D73: 63 | E73: 141.2 | F73: =IFERROR(BMR_chạy,"") -> 1415 | G73: =IFERROR(IF(K72>0,F72*Hệ_số_hoạt_động+IF(Cân_nặng_mong_muốn="Duy trì",0,IF(Cân_nặng_mong_muốn="GIẢM",-500,IF(Cân_nặng_mong_muốn="Tăng",500))),""),"") -> 1694 | H73: =IFERROR(F73*(Hệ_số_hoạt_động),"") -> 2193 | I73: 499 | J73: 21560 | K73: =IFERROR(IF(_xlfn.SINGLE(Tiêu_chuẩn),J73/_xlfn.SINGLE(Calo_Pound),J73/_xlfn.SINGLE(Calo_Pound)/2.2),"") -> 6.2 | L73: =IFERROR(Cân_nặng_cần_tăng_giảm-K73,"") -> 8.84 | M73: =IFERROR(IF(B72<>"",L73/(Cân_nặng_cần_tăng_giảm),""),"") -> 59%
B74: 2022-10-16 | C74: 10 | D74: 64 | E74: 141.0 | F74: =IFERROR(BMR_chạy,"") -> 1414 | G74: =IFERROR(IF(K73>0,F73*Hệ_số_hoạt_động+IF(Cân_nặng_mong_muốn="Duy trì",0,IF(Cân_nặng_mong_muốn="GIẢM",-500,IF(Cân_nặng_mong_muốn="Tăng",500))),""),"") -> 1693 | H74: =IFERROR(F74*(Hệ_số_hoạt_động),"") -> 2192 | I74: 499 | J74: 21061 | K74: =IFERROR(IF(_xlfn.SINGLE(Tiêu_chuẩn),J74/_xlfn.SINGLE(Calo_Pound),J74/_xlfn.SINGLE(Calo_Pound)/2.2),"") -> 6.0 | L74: =IFERROR(Cân_nặng_cần_tăng_giảm-K74,"") -> 8.98 | M74: =IFERROR(IF(B73<>"",L74/(Cân_nặng_cần_tăng_giảm),""),"") -> 60%
B75: 2022-10-17 | D75: 65 | E75: 140.9 | F75: =IFERROR(BMR_chạy,"") -> 1414 | G75: =IFERROR(IF(K74>0,F74*Hệ_số_hoạt_động+IF(Cân_nặng_mong_muốn="Duy trì",0,IF(Cân_nặng_mong_muốn="GIẢM",-500,IF(Cân_nặng_mong_muốn="Tăng",500))),""),"") -> 1692 | H75: =IFERROR(F75*(Hệ_số_hoạt_động),"") -> 2191 | I75: =IFERROR(IF(Cân_nặng_mong_muốn="Tăng",G75-H75,H75-G75),"") -> 499 | J75: 20562 | K75: =IFERROR(IF(_xlfn.SINGLE(Tiêu_chuẩn),J75/_xlfn.SINGLE(Calo_Pound),J75/_xlfn.SINGLE(Calo_Pound)/2.2),"") -> 5.9 | L75: =IFERROR(Cân_nặng_cần_tăng_giảm-K75,"") -> 9.13 | M75: =IFERROR(IF(B74<>"",L75/(Cân_nặng_cần_tăng_giảm),""),"") -> 61%
B76: =IFERROR(IF(K75>0,B75+1,""),"") -> 2022-10-18 | D76: =IFERROR(IF(K75>0,D75+1,""),"") -> 66 | E76: 140.7 | F76: =IFERROR(BMR_chạy,"") -> 1413 | G76: =IFERROR(IF(K75>0,F75*Hệ_số_hoạt_động+IF(Cân_nặng_mong_muốn="Duy trì",0,IF(Cân_nặng_mong_muốn="GIẢM",-500,IF(Cân_nặng_mong_muốn="Tăng",500))),""),"") -> 1691 | H76: =IFERROR(F76*(Hệ_số_hoạt_động),"") -> 2190 | I76: 499 | J76: 20062 | K76: =IFERROR(IF(_xlfn.SINGLE(Tiêu_chuẩn),J76/_xlfn.SINGLE(Calo_Pound),J76/_xlfn.SINGLE(Calo_Pound)/2.2),"") -> 5.7 | L76: =IFERROR(Cân_nặng_cần_tăng_giảm-K76,"") -> 9.27 | M76: =IFERROR(IF(B75<>"",L76/(Cân_nặng_cần_tăng_giảm),""),"") -> 62%
B77: 2022-10-19 | C77: =IFERROR(IF(D77<>"",IF(MOD(D77,7)=1,(D76/7)+1,""),""),"") ->  | D77: 67 | E77: =IFERROR(IF($D77<>"",E76-(I76/_xlfn.SINGLE(Calo_Pound)),""),"") -> 140.6 | F77: =IFERROR(BMR_chạy,"") -> 1412 | G77: =IFERROR(IF(K76>0,F76*Hệ_số_hoạt_động+IF(Cân_nặng_mong_muốn="Duy trì",0,IF(Cân_nặng_mong_muốn="GIẢM",-500,IF(Cân_nặng_mong_muốn="Tăng",500))),""),"") -> 1690 | H77: =IFERROR(F77*(Hệ_số_hoạt_động),"") -> 2189 | I77: 499 | J77: =IFERROR(J76-I77,"") -> 19563 | K77: =IFERROR(IF(_xlfn.SINGLE(Tiêu_chuẩn),J77/_xlfn.SINGLE(Calo_Pound),J77/_xlfn.SINGLE(Calo_Pound)/2.2),"") -> 5.6 | L77: =IFERROR(Cân_nặng_cần_tăng_giảm-K77,"") -> 9.41 | M77: =IFERROR(IF(B76<>"",L77/(Cân_nặng_cần_tăng_giảm),""),"") -> 63%
B78: 2022-10-20 | D78: 68 | E78: 140.4 | F78: =IFERROR(BMR_chạy,"") -> 1412 | G78: =IFERROR(IF(K77>0,F77*Hệ_số_hoạt_động+IF(Cân_nặng_mong_muốn="Duy trì",0,IF(Cân_nặng_mong_muốn="GIẢM",-500,IF(Cân_nặng_mong_muốn="Tăng",500))),""),"") -> 1689 | H78: =IFERROR(F78*(Hệ_số_hoạt_động),"") -> 2188 | I78: 499 | J78: 19064 | K78: =IFERROR(IF(_xlfn.SINGLE(Tiêu_chuẩn),J78/_xlfn.SINGLE(Calo_Pound),J78/_xlfn.SINGLE(Calo_Pound)/2.2),"") -> 5.4 | L78: =IFERROR(Cân_nặng_cần_tăng_giảm-K78,"") -> 9.55 | M78: =IFERROR(IF(B77<>"",L78/(Cân_nặng_cần_tăng_giảm),""),"") -> 64%
B79: 2022-10-21 | D79: 69 | E79: 140.3 | F79: =IFERROR(BMR_chạy,"") -> 1411 | G79: =IFERROR(IF(K78>0,F78*Hệ_số_hoạt_động+IF(Cân_nặng_mong_muốn="Duy trì",0,IF(Cân_nặng_mong_muốn="GIẢM",-500,IF(Cân_nặng_mong_muốn="Tăng",500))),""),"") -> 1688 | H79: =IFERROR(F79*(Hệ_số_hoạt_động),"") -> 2187 | I79: 499 | J79: 18565 | K79: =IFERROR(IF(_xlfn.SINGLE(Tiêu_chuẩn),J79/_xlfn.SINGLE(Calo_Pound),J79/_xlfn.SINGLE(Calo_Pound)/2.2),"") -> 5.3 | L79: =IFERROR(Cân_nặng_cần_tăng_giảm-K79,"") -> 9.70 | M79: =IFERROR(IF(B78<>"",L79/(Cân_nặng_cần_tăng_giảm),""),"") -> 65%
B80: 2022-10-22 | D80: 70 | E80: 140.2 | F80: =IFERROR(BMR_chạy,"") -> 1410 | G80: =IFERROR(IF(K79>0,F79*Hệ_số_hoạt_động+IF(Cân_nặng_mong_muốn="Duy trì",0,IF(Cân_nặng_mong_muốn="GIẢM",-500,IF(Cân_nặng_mong_muốn="Tăng",500))),""),"") -> 1687 | H80: =IFERROR(F80*(Hệ_số_hoạt_động),"") -> 2186 | I80: 499 | J80: 18066 | K80: =IFERROR(IF(_xlfn.SINGLE(Tiêu_chuẩn),J80/_xlfn.SINGLE(Calo_Pound),J80/_xlfn.SINGLE(Calo_Pound)/2.2),"") -> 5.2 | L80: =IFERROR(Cân_nặng_cần_tăng_giảm-K80,"") -> 9.84 | M80: =IFERROR(IF(B79<>"",L80/(Cân_nặng_cần_tăng_giảm),""),"") -> 66%
B81: 2022-10-23 | C81: 11 | D81: 71 | E81: 140.0 | F81: =IFERROR(BMR_chạy,"") -> 1410 | G81: =IFERROR(IF(K80>0,F80*Hệ_số_hoạt_động+IF(Cân_nặng_mong_muốn="Duy trì",0,IF(Cân_nặng_mong_muốn="GIẢM",-500,IF(Cân_nặng_mong_muốn="Tăng",500))),""),"") -> 1686 | H81: =IFERROR(F81*(Hệ_số_hoạt_động),"") -> 2185 | I81: 499 | J81: 17567 | K81: =IFERROR(IF(_xlfn.SINGLE(Tiêu_chuẩn),J81/_xlfn.SINGLE(Calo_Pound),J81/_xlfn.SINGLE(Calo_Pound)/2.2),"") -> 5.0 | L81: =IFERROR(Cân_nặng_cần_tăng_giảm-K81,"") -> 9.98 | M81: =IFERROR(IF(B80<>"",L81/(Cân_nặng_cần_tăng_giảm),""),"") -> 67%
B82: 2022-10-24 | D82: 72 | E82: 139.9 | F82: =IFERROR(BMR_chạy,"") -> 1409 | G82: =IFERROR(IF(K81>0,F81*Hệ_số_hoạt_động+IF(Cân_nặng_mong_muốn="Duy trì",0,IF(Cân_nặng_mong_muốn="GIẢM",-500,IF(Cân_nặng_mong_muốn="Tăng",500))),""),"") -> 1685 | H82: =IFERROR(F82*(Hệ_số_hoạt_động),"") -> 2184 | I82: 499 | J82: 17068 | K82: =IFERROR(IF(_xlfn.SINGLE(Tiêu_chuẩn),J82/_xlfn.SINGLE(Calo_Pound),J82/_xlfn.SINGLE(Calo_Pound)/2.2),"") -> 4.9 | L82: =IFERROR(Cân_nặng_cần_tăng_giảm-K82,"") -> 10.12 | M82: =IFERROR(IF(B81<>"",L82/(Cân_nặng_cần_tăng_giảm),""),"") -> 67%
B83: 2022-10-25 | D83: 73 | E83: 139.7 | F83: =IFERROR(BMR_chạy,"") -> 1409 | G83: =IFERROR(IF(K82>0,F82*Hệ_số_hoạt_động+IF(Cân_nặng_mong_muốn="Duy trì",0,IF(Cân_nặng_mong_muốn="GIẢM",-500,IF(Cân_nặng_mong_muốn="Tăng",500))),""),"") -> 1684 | H83: =IFERROR(F83*(Hệ_số_hoạt_động),"") -> 2183 | I83: 499 | J83: 16569 | K83: =IFERROR(IF(_xlfn.SINGLE(Tiêu_chuẩn),J83/_xlfn.SINGLE(Calo_Pound),J83/_xlfn.SINGLE(Calo_Pound)/2.2),"") -> 4.7 | L83: =IFERROR(Cân_nặng_cần_tăng_giảm-K83,"") -> 10.27 | M83: =IFERROR(IF(B82<>"",L83/(Cân_nặng_cần_tăng_giảm),""),"") -> 68%
B84: 2022-10-26 | D84: 74 | E84: 139.6 | F84: =IFERROR(BMR_chạy,"") -> 1408 | G84: =IFERROR(IF(K83>0,F83*Hệ_số_hoạt_động+IF(Cân_nặng_mong_muốn="Duy trì",0,IF(Cân_nặng_mong_muốn="GIẢM",-500,IF(Cân_nặng_mong_muốn="Tăng",500))),""),"") -> 1683 | H84: =IFERROR(F84*(Hệ_số_hoạt_động),"") -> 2182 | I84: 499 | J84: 16070 | K84: =IFERROR(IF(_xlfn.SINGLE(Tiêu_chuẩn),J84/_xlfn.SINGLE(Calo_Pound),J84/_xlfn.SINGLE(Calo_Pound)/2.2),"") -> 4.6 | L84: =IFERROR(Cân_nặng_cần_tăng_giảm-K84,"") -> 10.41 | M84: =IFERROR(IF(B83<>"",L84/(Cân_nặng_cần_tăng_giảm),""),"") -> 69%
B85: 2022-10-27 | D85: 75 | E85: 139.4 | F85: =IFERROR(BMR_chạy,"") -> 1407 | G85: =IFERROR(IF(K84>0,F84*Hệ_số_hoạt_động+IF(Cân_nặng_mong_muốn="Duy trì",0,IF(Cân_nặng_mong_muốn="GIẢM",-500,IF(Cân_nặng_mong_muốn="Tăng",500))),""),"") -> 1682 | H85: =IFERROR(F85*(Hệ_số_hoạt_động),"") -> 2181 | I85: 499 | J85: 15571 | K85: =IFERROR(IF(_xlfn.SINGLE(Tiêu_chuẩn),J85/_xlfn.SINGLE(Calo_Pound),J85/_xlfn.SINGLE(Calo_Pound)/2.2),"") -> 4.4 | L85: =IFERROR(Cân_nặng_cần_tăng_giảm-K85,"") -> 10.55 | M85: =IFERROR(IF(B84<>"",L85/(Cân_nặng_cần_tăng_giảm),""),"") -> 70%
B86: 2022-10-28 | D86: 76 | E86: 139.3 | F86: =IFERROR(BMR_chạy,"") -> 1407 | G86: =IFERROR(IF(K85>0,F85*Hệ_số_hoạt_động+IF(Cân_nặng_mong_muốn="Duy trì",0,IF(Cân_nặng_mong_muốn="GIẢM",-500,IF(Cân_nặng_mong_muốn="Tăng",500))),""),"") -> 1681 | H86: =IFERROR(F86*(Hệ_số_hoạt_động),"") -> 2180 | I86: 499 | J86: 15072 | K86: =IFERROR(IF(_xlfn.SINGLE(Tiêu_chuẩn),J86/_xlfn.SINGLE(Calo_Pound),J86/_xlfn.SINGLE(Calo_Pound)/2.2),"") -> 4.3 | L86: =IFERROR(Cân_nặng_cần_tăng_giảm-K86,"") -> 10.69 | M86: =IFERROR(IF(B85<>"",L86/(Cân_nặng_cần_tăng_giảm),""),"") -> 71%
B87: 2022-10-29 | D87: 77 | E87: 139.2 | F87: =IFERROR(BMR_chạy,"") -> 1406 | G87: =IFERROR(IF(K86>0,F86*Hệ_số_hoạt_động+IF(Cân_nặng_mong_muốn="Duy trì",0,IF(Cân_nặng_mong_muốn="GIẢM",-500,IF(Cân_nặng_mong_muốn="Tăng",500))),""),"") -> 1680 | H87: =IFERROR(F87*(Hệ_số_hoạt_động),"") -> 2179 | I87: 499 | J87: 14573 | K87: =IFERROR(IF(_xlfn.SINGLE(Tiêu_chuẩn),J87/_xlfn.SINGLE(Calo_Pound),J87/_xlfn.SINGLE(Calo_Pound)/2.2),"") -> 4.2 | L87: =IFERROR(Cân_nặng_cần_tăng_giảm-K87,"") -> 10.84 | M87: =IFERROR(IF(B86<>"",L87/(Cân_nặng_cần_tăng_giảm),""),"") -> 72%
B88: 2022-10-30 | C88: 12 | D88: 78 | E88: 139.0 | F88: =IFERROR(BMR_chạy,"") -> 1405 | G88: =IFERROR(IF(K87>0,F87*Hệ_số_hoạt_động+IF(Cân_nặng_mong_muốn="Duy trì",0,IF(Cân_nặng_mong_muốn="GIẢM",-500,IF(Cân_nặng_mong_muốn="Tăng",500))),""),"") -> 1679 | H88: =IFERROR(F88*(Hệ_số_hoạt_động),"") -> 2178 | I88: 499 | J88: 14074 | K88: =IFERROR(IF(_xlfn.SINGLE(Tiêu_chuẩn),J88/_xlfn.SINGLE(Calo_Pound),J88/_xlfn.SINGLE(Calo_Pound)/2.2),"") -> 4.0 | L88: =IFERROR(Cân_nặng_cần_tăng_giảm-K88,"") -> 10.98 | M88: =IFERROR(IF(B87<>"",L88/(Cân_nặng_cần_tăng_giảm),""),"") -> 73%
B89: 2022-10-31 | D89: 79 | E89: 138.9 | F89: =IFERROR(BMR_chạy,"") -> 1405 | G89: =IFERROR(IF(K88>0,F88*Hệ_số_hoạt_động+IF(Cân_nặng_mong_muốn="Duy trì",0,IF(Cân_nặng_mong_muốn="GIẢM",-500,IF(Cân_nặng_mong_muốn="Tăng",500))),""),"") -> 1678 | H89: =IFERROR(F89*(Hệ_số_hoạt_động),"") -> 2177 | I89: 499 | J89: 13575 | K89: =IFERROR(IF(_xlfn.SINGLE(Tiêu_chuẩn),J89/_xlfn.SINGLE(Calo_Pound),J89/_xlfn.SINGLE(Calo_Pound)/2.2),"") -> 3.9 | L89: =IFERROR(Cân_nặng_cần_tăng_giảm-K89,"") -> 11.12 | M89: =IFERROR(IF(B88<>"",L89/(Cân_nặng_cần_tăng_giảm),""),"") -> 74%
B90: 2022-11-01 | D90: 80 | E90: 138.7 | F90: =IFERROR(BMR_chạy,"") -> 1404 | G90: =IFERROR(IF(K89>0,F89*Hệ_số_hoạt_động+IF(Cân_nặng_mong_muốn="Duy trì",0,IF(Cân_nặng_mong_muốn="GIẢM",-500,IF(Cân_nặng_mong_muốn="Tăng",500))),""),"") -> 1677 | H90: =IFERROR(F90*(Hệ_số_hoạt_động),"") -> 2177 | I90: 499 | J90: 13076 | K90: =IFERROR(IF(_xlfn.SINGLE(Tiêu_chuẩn),J90/_xlfn.SINGLE(Calo_Pound),J90/_xlfn.SINGLE(Calo_Pound)/2.2),"") -> 3.7 | L90: =IFERROR(Cân_nặng_cần_tăng_giảm-K90,"") -> 11.26 | M90: =IFERROR(IF(B89<>"",L90/(Cân_nặng_cần_tăng_giảm),""),"") -> 75%
B91: 2022-11-02 | D91: 81 | E91: 138.6 | F91: =IFERROR(BMR_chạy,"") -> 1404 | G91: =IFERROR(IF(K90>0,F90*Hệ_số_hoạt_động+IF(Cân_nặng_mong_muốn="Duy trì",0,IF(Cân_nặng_mong_muốn="GIẢM",-500,IF(Cân_nặng_mong_muốn="Tăng",500))),""),"") -> 1677 | H91: =IFERROR(F91*(Hệ_số_hoạt_động),"") -> 2176 | I91: 499 | J91: 12577 | K91: =IFERROR(IF(_xlfn.SINGLE(Tiêu_chuẩn),J91/_xlfn.SINGLE(Calo_Pound),J91/_xlfn.SINGLE(Calo_Pound)/2.2),"") -> 3.6 | L91: =IFERROR(Cân_nặng_cần_tăng_giảm-K91,"") -> 11.41 | M91: =IFERROR(IF(B90<>"",L91/(Cân_nặng_cần_tăng_giảm),""),"") -> 76%
B92: 2022-11-03 | D92: 82 | E92: 138.5 | F92: =IFERROR(BMR_chạy,"") -> 1403 | G92: =IFERROR(IF(K91>0,F91*Hệ_số_hoạt_động+IF(Cân_nặng_mong_muốn="Duy trì",0,IF(Cân_nặng_mong_muốn="GIẢM",-500,IF(Cân_nặng_mong_muốn="Tăng",500))),""),"") -> 1676 | H92: =IFERROR(F92*(Hệ_số_hoạt_động),"") -> 2175 | I92: 499 | J92: 12078 | K92: =IFERROR(IF(_xlfn.SINGLE(Tiêu_chuẩn),J92/_xlfn.SINGLE(Calo_Pound),J92/_xlfn.SINGLE(Calo_Pound)/2.2),"") -> 3.5 | L92: =IFERROR(Cân_nặng_cần_tăng_giảm-K92,"") -> 11.55 | M92: =IFERROR(IF(B91<>"",L92/(Cân_nặng_cần_tăng_giảm),""),"") -> 77%
B93: 2022-11-04 | D93: 83 | E93: 138.3 | F93: =IFERROR(BMR_chạy,"") -> 1402 | G93: =IFERROR(IF(K92>0,F92*Hệ_số_hoạt_động+IF(Cân_nặng_mong_muốn="Duy trì",0,IF(Cân_nặng_mong_muốn="GIẢM",-500,IF(Cân_nặng_mong_muốn="Tăng",500))),""),"") -> 1675 | H93: =IFERROR(F93*(Hệ_số_hoạt_động),"") -> 2174 | I93: 499 | J93: 11579 | K93: =IFERROR(IF(_xlfn.SINGLE(Tiêu_chuẩn),J93/_xlfn.SINGLE(Calo_Pound),J93/_xlfn.SINGLE(Calo_Pound)/2.2),"") -> 3.3 | L93: =IFERROR(Cân_nặng_cần_tăng_giảm-K93,"") -> 11.69 | M93: =IFERROR(IF(B92<>"",L93/(Cân_nặng_cần_tăng_giảm),""),"") -> 78%
B94: 2022-11-05 | D94: 84 | E94: 138.2 | F94: =IFERROR(BMR_chạy,"") -> 1402 | G94: =IFERROR(IF(K93>0,F93*Hệ_số_hoạt_động+IF(Cân_nặng_mong_muốn="Duy trì",0,IF(Cân_nặng_mong_muốn="GIẢM",-500,IF(Cân_nặng_mong_muốn="Tăng",500))),""),"") -> 1674 | H94: =IFERROR(F94*(Hệ_số_hoạt_động),"") -> 2173 | I94: 499 | J94: 11080 | K94: =IFERROR(IF(_xlfn.SINGLE(Tiêu_chuẩn),J94/_xlfn.SINGLE(Calo_Pound),J94/_xlfn.SINGLE(Calo_Pound)/2.2),"") -> 3.2 | L94: =IFERROR(Cân_nặng_cần_tăng_giảm-K94,"") -> 11.83 | M94: =IFERROR(IF(B93<>"",L94/(Cân_nặng_cần_tăng_giảm),""),"") -> 79%
B95: 2022-11-06 | C95: 13 | D95: 85 | E95: 138.0 | F95: =IFERROR(BMR_chạy,"") -> 1401 | G95: =IFERROR(IF(K94>0,F94*Hệ_số_hoạt_động+IF(Cân_nặng_mong_muốn="Duy trì",0,IF(Cân_nặng_mong_muốn="GIẢM",-500,IF(Cân_nặng_mong_muốn="Tăng",500))),""),"") -> 1673 | H95: =IFERROR(F95*(Hệ_số_hoạt_động),"") -> 2172 | I95: 499 | J95: 10581 | K95: =IFERROR(IF(_xlfn.SINGLE(Tiêu_chuẩn),J95/_xlfn.SINGLE(Calo_Pound),J95/_xlfn.SINGLE(Calo_Pound)/2.2),"") -> 3.0 | L95: =IFERROR(Cân_nặng_cần_tăng_giảm-K95,"") -> 11.98 | M95: =IFERROR(IF(B94<>"",L95/(Cân_nặng_cần_tăng_giảm),""),"") -> 80%
B96: 2022-11-07 | D96: 86 | E96: 137.9 | F96: =IFERROR(BMR_chạy,"") -> 1400 | G96: =IFERROR(IF(K95>0,F95*Hệ_số_hoạt_động+IF(Cân_nặng_mong_muốn="Duy trì",0,IF(Cân_nặng_mong_muốn="GIẢM",-500,IF(Cân_nặng_mong_muốn="Tăng",500))),""),"") -> 1672 | H96: =IFERROR(F96*(Hệ_số_hoạt_động),"") -> 2171 | I96: 499 | J96: 10082 | K96: =IFERROR(IF(_xlfn.SINGLE(Tiêu_chuẩn),J96/_xlfn.SINGLE(Calo_Pound),J96/_xlfn.SINGLE(Calo_Pound)/2.2),"") -> 2.9 | L96: =IFERROR(Cân_nặng_cần_tăng_giảm-K96,"") -> 12.12 | M96: =IFERROR(IF(B95<>"",L96/(Cân_nặng_cần_tăng_giảm),""),"") -> 81%
B97: 2022-11-08 | D97: 87 | E97: 137.7 | F97: =IFERROR(BMR_chạy,"") -> 1400 | G97: =IFERROR(IF(K96>0,F96*Hệ_số_hoạt_động+IF(Cân_nặng_mong_muốn="Duy trì",0,IF(Cân_nặng_mong_muốn="GIẢM",-500,IF(Cân_nặng_mong_muốn="Tăng",500))),""),"") -> 1671 | H97: =IFERROR(F97*(Hệ_số_hoạt_động),"") -> 2170 | I97: 499 | J97: 9583 | K97: =IFERROR(IF(_xlfn.SINGLE(Tiêu_chuẩn),J97/_xlfn.SINGLE(Calo_Pound),J97/_xlfn.SINGLE(Calo_Pound)/2.2),"") -> 2.7 | L97: =IFERROR(Cân_nặng_cần_tăng_giảm-K97,"") -> 12.26 | M97: =IFERROR(IF(B96<>"",L97/(Cân_nặng_cần_tăng_giảm),""),"") -> 82%
B98: 2022-11-09 | D98: 88 | E98: 137.6 | F98: =IFERROR(BMR_chạy,"") -> 1399 | G98: =IFERROR(IF(K97>0,F97*Hệ_số_hoạt_động+IF(Cân_nặng_mong_muốn="Duy trì",0,IF(Cân_nặng_mong_muốn="GIẢM",-500,IF(Cân_nặng_mong_muốn="Tăng",500))),""),"") -> 1670 | H98: =IFERROR(F98*(Hệ_số_hoạt_động),"") -> 2169 | I98: 499 | J98: 9084 | K98: =IFERROR(IF(_xlfn.SINGLE(Tiêu_chuẩn),J98/_xlfn.SINGLE(Calo_Pound),J98/_xlfn.SINGLE(Calo_Pound)/2.2),"") -> 2.6 | L98: =IFERROR(Cân_nặng_cần_tăng_giảm-K98,"") -> 12.40 | M98: =IFERROR(IF(B97<>"",L98/(Cân_nặng_cần_tăng_giảm),""),"") -> 83%
B99: 2022-11-10 | D99: 89 | E99: 137.5 | F99: =IFERROR(BMR_chạy,"") -> 1399 | G99: =IFERROR(IF(K98>0,F98*Hệ_số_hoạt_động+IF(Cân_nặng_mong_muốn="Duy trì",0,IF(Cân_nặng_mong_muốn="GIẢM",-500,IF(Cân_nặng_mong_muốn="Tăng",500))),""),"") -> 1669 | H99: =IFERROR(F99*(Hệ_số_hoạt_động),"") -> 2168 | I99: 499 | J99: 8585 | K99: =IFERROR(IF(_xlfn.SINGLE(Tiêu_chuẩn),J99/_xlfn.SINGLE(Calo_Pound),J99/_xlfn.SINGLE(Calo_Pound)/2.2),"") -> 2.5 | L99: =IFERROR(Cân_nặng_cần_tăng_giảm-K99,"") -> 12.55 | M99: =IFERROR(IF(B98<>"",L99/(Cân_nặng_cần_tăng_giảm),""),"") -> 84%
B100: 2022-11-11 | D100: 90 | E100: 137.3 | F100: =IFERROR(BMR_chạy,"") -> 1398 | G100: =IFERROR(IF(K99>0,F99*Hệ_số_hoạt_động+IF(Cân_nặng_mong_muốn="Duy trì",0,IF(Cân_nặng_mong_muốn="GIẢM",-500,IF(Cân_nặng_mong_muốn="Tăng",500))),""),"") -> 1668 | H100: =IFERROR(F100*(Hệ_số_hoạt_động),"") -> 2167 | I100: 499 | J100: 8086 | K100: =IFERROR(IF(_xlfn.SINGLE(Tiêu_chuẩn),J100/_xlfn.SINGLE(Calo_Pound),J100/_xlfn.SINGLE(Calo_Pound)/2.2),"") -> 2.3 | L100: =IFERROR(Cân_nặng_cần_tăng_giảm-K100,"") -> 12.69 | M100: =IFERROR(IF(B99<>"",L100/(Cân_nặng_cần_tăng_giảm),""),"") -> 85%
B101: 2022-11-12 | D101: 91 | E101: 137.2 | F101: =IFERROR(BMR_chạy,"") -> 1397 | G101: =IFERROR(IF(K100>0,F100*Hệ_số_hoạt_động+IF(Cân_nặng_mong_muốn="Duy trì",0,IF(Cân_nặng_mong_muốn="GIẢM",-500,IF(Cân_nặng_mong_muốn="Tăng",500))),""),"") -> 1667 | H101: =IFERROR(F101*(Hệ_số_hoạt_động),"") -> 2166 | I101: 499 | J101: 7587 | K101: =IFERROR(IF(_xlfn.SINGLE(Tiêu_chuẩn),J101/_xlfn.SINGLE(Calo_Pound),J101/_xlfn.SINGLE(Calo_Pound)/2.2),"") -> 2.2 | L101: =IFERROR(Cân_nặng_cần_tăng_giảm-K101,"") -> 12.83 | M101: =IFERROR(IF(B100<>"",L101/(Cân_nặng_cần_tăng_giảm),""),"") -> 86%
B102: 2022-11-13 | C102: 14 | D102: 92 | E102: 137.0 | F102: =IFERROR(BMR_chạy,"") -> 1397 | G102: =IFERROR(IF(K101>0,F101*Hệ_số_hoạt_động+IF(Cân_nặng_mong_muốn="Duy trì",0,IF(Cân_nặng_mong_muốn="GIẢM",-500,IF(Cân_nặng_mong_muốn="Tăng",500))),""),"") -> 1666 | H102: =IFERROR(F102*(Hệ_số_hoạt_động),"") -> 2165 | I102: 499 | J102: 7087 | K102: =IFERROR(IF(_xlfn.SINGLE(Tiêu_chuẩn),J102/_xlfn.SINGLE(Calo_Pound),J102/_xlfn.SINGLE(Calo_Pound)/2.2),"") -> 2.0 | L102: =IFERROR(Cân_nặng_cần_tăng_giảm-K102,"") -> 12.98 | M102: =IFERROR(IF(B101<>"",L102/(Cân_nặng_cần_tăng_giảm),""),"") -> 87%
B103: 2022-11-14 | D103: 93 | E103: 136.9 | F103: =IFERROR(BMR_chạy,"") -> 1396 | G103: =IFERROR(IF(K102>0,F102*Hệ_số_hoạt_động+IF(Cân_nặng_mong_muốn="Duy trì",0,IF(Cân_nặng_mong_muốn="GIẢM",-500,IF(Cân_nặng_mong_muốn="Tăng",500))),""),"") -> 1665 | H103: =IFERROR(F103*(Hệ_số_hoạt_động),"") -> 2164 | I103: 499 | J103: 6588 | K103: =IFERROR(IF(_xlfn.SINGLE(Tiêu_chuẩn),J103/_xlfn.SINGLE(Calo_Pound),J103/_xlfn.SINGLE(Calo_Pound)/2.2),"") -> 1.9 | L103: =IFERROR(Cân_nặng_cần_tăng_giảm-K103,"") -> 13.12 | M103: =IFERROR(IF(B102<>"",L103/(Cân_nặng_cần_tăng_giảm),""),"") -> 87%
B104: 2022-11-15 | D104: 94 | E104: 136.7 | F104: =IFERROR(BMR_chạy,"") -> 1396 | G104: =IFERROR(IF(K103>0,F103*Hệ_số_hoạt_động+IF(Cân_nặng_mong_muốn="Duy trì",0,IF(Cân_nặng_mong_muốn="GIẢM",-500,IF(Cân_nặng_mong_muốn="Tăng",500))),""),"") -> 1664 | H104: =IFERROR(F104*(Hệ_số_hoạt_động),"") -> 2163 | I104: 499 | J104: 6089 | K104: =IFERROR(IF(_xlfn.SINGLE(Tiêu_chuẩn),J104/_xlfn.SINGLE(Calo_Pound),J104/_xlfn.SINGLE(Calo_Pound)/2.2),"") -> 1.7 | L104: =IFERROR(Cân_nặng_cần_tăng_giảm-K104,"") -> 13.26 | M104: =IFERROR(IF(B103<>"",L104/(Cân_nặng_cần_tăng_giảm),""),"") -> 88%
B105: 2022-11-16 | D105: 95 | E105: 136.6 | F105: =IFERROR(BMR_chạy,"") -> 1395 | G105: =IFERROR(IF(K104>0,F104*Hệ_số_hoạt_động+IF(Cân_nặng_mong_muốn="Duy trì",0,IF(Cân_nặng_mong_muốn="GIẢM",-500,IF(Cân_nặng_mong_muốn="Tăng",500))),""),"") -> 1663 | H105: =IFERROR(F105*(Hệ_số_hoạt_động),"") -> 2162 | I105: 499 | J105: 5590 | K105: =IFERROR(IF(_xlfn.SINGLE(Tiêu_chuẩn),J105/_xlfn.SINGLE(Calo_Pound),J105/_xlfn.SINGLE(Calo_Pound)/2.2),"") -> 1.6 | L105: =IFERROR(Cân_nặng_cần_tăng_giảm-K105,"") -> 13.40 | M105: =IFERROR(IF(B104<>"",L105/(Cân_nặng_cần_tăng_giảm),""),"") -> 89%
B106: 2022-11-17 | D106: 96 | E106: 136.5 | F106: =IFERROR(BMR_chạy,"") -> 1394 | G106: =IFERROR(IF(K105>0,F105*Hệ_số_hoạt_động+IF(Cân_nặng_mong_muốn="Duy trì",0,IF(Cân_nặng_mong_muốn="GIẢM",-500,IF(Cân_nặng_mong_muốn="Tăng",500))),""),"") -> 1662 | H106: =IFERROR(F106*(Hệ_số_hoạt_động),"") -> 2161 | I106: 499 | J106: 5091 | K106: =IFERROR(IF(_xlfn.SINGLE(Tiêu_chuẩn),J106/_xlfn.SINGLE(Calo_Pound),J106/_xlfn.SINGLE(Calo_Pound)/2.2),"") -> 1.5 | L106: =IFERROR(Cân_nặng_cần_tăng_giảm-K106,"") -> 13.55 | M106: =IFERROR(IF(B105<>"",L106/(Cân_nặng_cần_tăng_giảm),""),"") -> 90%
B107: 2022-11-18 | D107: 97 | E107: 136.3 | F107: =IFERROR(BMR_chạy,"") -> 1394 | G107: =IFERROR(IF(K106>0,F106*Hệ_số_hoạt_động+IF(Cân_nặng_mong_muốn="Duy trì",0,IF(Cân_nặng_mong_muốn="GIẢM",-500,IF(Cân_nặng_mong_muốn="Tăng",500))),""),"") -> 1661 | H107: =IFERROR(F107*(Hệ_số_hoạt_động),"") -> 2160 | I107: 499 | J107: 4592 | K107: =IFERROR(IF(_xlfn.SINGLE(Tiêu_chuẩn),J107/_xlfn.SINGLE(Calo_Pound),J107/_xlfn.SINGLE(Calo_Pound)/2.2),"") -> 1.3 | L107: =IFERROR(Cân_nặng_cần_tăng_giảm-K107,"") -> 13.69 | M107: =IFERROR(IF(B106<>"",L107/(Cân_nặng_cần_tăng_giảm),""),"") -> 91%
B108: 2022-11-19 | D108: 98 | E108: 136.2 | F108: =IFERROR(BMR_chạy,"") -> 1393 | G108: =IFERROR(IF(K107>0,F107*Hệ_số_hoạt_động+IF(Cân_nặng_mong_muốn="Duy trì",0,IF(Cân_nặng_mong_muốn="GIẢM",-500,IF(Cân_nặng_mong_muốn="Tăng",500))),""),"") -> 1660 | H108: =IFERROR(F108*(Hệ_số_hoạt_động),"") -> 2159 | I108: 499 | J108: 4093 | K108: =IFERROR(IF(_xlfn.SINGLE(Tiêu_chuẩn),J108/_xlfn.SINGLE(Calo_Pound),J108/_xlfn.SINGLE(Calo_Pound)/2.2),"") -> 1.2 | L108: =IFERROR(Cân_nặng_cần_tăng_giảm-K108,"") -> 13.83 | M108: =IFERROR(IF(B107<>"",L108/(Cân_nặng_cần_tăng_giảm),""),"") -> 92%
B109: 2022-11-20 | C109: 15 | D109: 99 | E109: 136.0 | F109: =IFERROR(BMR_chạy,"") -> 1392 | G109: =IFERROR(IF(K108>0,F108*Hệ_số_hoạt_động+IF(Cân_nặng_mong_muốn="Duy trì",0,IF(Cân_nặng_mong_muốn="GIẢM",-500,IF(Cân_nặng_mong_muốn="Tăng",500))),""),"") -> 1659 | H109: =IFERROR(F109*(Hệ_số_hoạt_động),"") -> 2158 | I109: 499 | J109: 3594 | K109: =IFERROR(IF(_xlfn.SINGLE(Tiêu_chuẩn),J109/_xlfn.SINGLE(Calo_Pound),J109/_xlfn.SINGLE(Calo_Pound)/2.2),"") -> 1.0 | L109: =IFERROR(Cân_nặng_cần_tăng_giảm-K109,"") -> 13.97 | M109: =IFERROR(IF(B108<>"",L109/(Cân_nặng_cần_tăng_giảm),""),"") -> 93%
B110: 2022-11-21 | D110: 100 | E110: 135.9 | F110: =IFERROR(BMR_chạy,"") -> 1392 | G110: =IFERROR(IF(K109>0,F109*Hệ_số_hoạt_động+IF(Cân_nặng_mong_muốn="Duy trì",0,IF(Cân_nặng_mong_muốn="GIẢM",-500,IF(Cân_nặng_mong_muốn="Tăng",500))),""),"") -> 1658 | H110: =IFERROR(F110*(Hệ_số_hoạt_động),"") -> 2157 | I110: 499 | J110: 3095 | K110: =IFERROR(IF(_xlfn.SINGLE(Tiêu_chuẩn),J110/_xlfn.SINGLE(Calo_Pound),J110/_xlfn.SINGLE(Calo_Pound)/2.2),"") -> 0.9 | L110: =IFERROR(Cân_nặng_cần_tăng_giảm-K110,"") -> 14.12 | M110: =IFERROR(IF(B109<>"",L110/(Cân_nặng_cần_tăng_giảm),""),"") -> 94%
B111: 2022-11-22 | D111: 101 | E111: 135.7 | F111: =IFERROR(BMR_chạy,"") -> 1391 | G111: =IFERROR(IF(K110>0,F110*Hệ_số_hoạt_động+IF(Cân_nặng_mong_muốn="Duy trì",0,IF(Cân_nặng_mong_muốn="GIẢM",-500,IF(Cân_nặng_mong_muốn="Tăng",500))),""),"") -> 1657 | H111: =IFERROR(F111*(Hệ_số_hoạt_động),"") -> 2156 | I111: 499 | J111: 2596 | K111: =IFERROR(IF(_xlfn.SINGLE(Tiêu_chuẩn),J111/_xlfn.SINGLE(Calo_Pound),J111/_xlfn.SINGLE(Calo_Pound)/2.2),"") -> 0.7 | L111: =IFERROR(Cân_nặng_cần_tăng_giảm-K111,"") -> 14.26 | M111: =IFERROR(IF(B110<>"",L111/(Cân_nặng_cần_tăng_giảm),""),"") -> 95%
B112: 2022-11-23 | D112: 102 | E112: 135.6 | F112: =IFERROR(BMR_chạy,"") -> 1391 | G112: =IFERROR(IF(K111>0,F111*Hệ_số_hoạt_động+IF(Cân_nặng_mong_muốn="Duy trì",0,IF(Cân_nặng_mong_muốn="GIẢM",-500,IF(Cân_nặng_mong_muốn="Tăng",500))),""),"") -> 1656 | H112: =IFERROR(F112*(Hệ_số_hoạt_động),"") -> 2155 | I112: 499 | J112: 2097 | K112: =IFERROR(IF(_xlfn.SINGLE(Tiêu_chuẩn),J112/_xlfn.SINGLE(Calo_Pound),J112/_xlfn.SINGLE(Calo_Pound)/2.2),"") -> 0.6 | L112: =IFERROR(Cân_nặng_cần_tăng_giảm-K112,"") -> 14.40 | M112: =IFERROR(IF(B111<>"",L112/(Cân_nặng_cần_tăng_giảm),""),"") -> 96%
B113: 2022-11-24 | D113: 103 | E113: 135.5 | F113: =IFERROR(BMR_chạy,"") -> 1390 | G113: =IFERROR(IF(K112>0,F112*Hệ_số_hoạt_động+IF(Cân_nặng_mong_muốn="Duy trì",0,IF(Cân_nặng_mong_muốn="GIẢM",-500,IF(Cân_nặng_mong_muốn="Tăng",500))),""),"") -> 1655 | H113: =IFERROR(F113*(Hệ_số_hoạt_động),"") -> 2154 | I113: 499 | J113: 1598 | K113: =IFERROR(IF(_xlfn.SINGLE(Tiêu_chuẩn),J113/_xlfn.SINGLE(Calo_Pound),J113/_xlfn.SINGLE(Calo_Pound)/2.2),"") -> 0.5 | L113: =IFERROR(Cân_nặng_cần_tăng_giảm-K113,"") -> 14.54 | M113: =IFERROR(IF(B112<>"",L113/(Cân_nặng_cần_tăng_giảm),""),"") -> 97%
B114: 2022-11-25 | D114: 104 | E114: 135.3 | F114: =IFERROR(BMR_chạy,"") -> 1389 | G114: =IFERROR(IF(K113>0,F113*Hệ_số_hoạt_động+IF(Cân_nặng_mong_muốn="Duy trì",0,IF(Cân_nặng_mong_muốn="GIẢM",-500,IF(Cân_nặng_mong_muốn="Tăng",500))),""),"") -> 1654 | H114: =IFERROR(F114*(Hệ_số_hoạt_động),"") -> 2153 | I114: 499 | J114: 1099 | K114: =IFERROR(IF(_xlfn.SINGLE(Tiêu_chuẩn),J114/_xlfn.SINGLE(Calo_Pound),J114/_xlfn.SINGLE(Calo_Pound)/2.2),"") -> 0.3 | L114: =IFERROR(Cân_nặng_cần_tăng_giảm-K114,"") -> 14.69 | M114: =IFERROR(IF(B113<>"",L114/(Cân_nặng_cần_tăng_giảm),""),"") -> 98%
B115: 2022-11-26 | D115: 105 | E115: 135.2 | F115: =IFERROR(BMR_chạy,"") -> 1389 | G115: =IFERROR(IF(K114>0,F114*Hệ_số_hoạt_động+IF(Cân_nặng_mong_muốn="Duy trì",0,IF(Cân_nặng_mong_muốn="GIẢM",-500,IF(Cân_nặng_mong_muốn="Tăng",500))),""),"") -> 1653 | H115: =IFERROR(F115*(Hệ_số_hoạt_động),"") -> 2152 | I115: 499 | J115: 600 | K115: =IFERROR(IF(_xlfn.SINGLE(Tiêu_chuẩn),J115/_xlfn.SINGLE(Calo_Pound),J115/_xlfn.SINGLE(Calo_Pound)/2.2),"") -> 0.2 | L115: =IFERROR(Cân_nặng_cần_tăng_giảm-K115,"") -> 14.83 | M115: =IFERROR(IF(B114<>"",L115/(Cân_nặng_cần_tăng_giảm),""),"") -> 99%
B116: 2022-11-27 | C116: 16 | D116: 106 | E116: 135.0 | F116: =IFERROR(BMR_chạy,"") -> 1388 | G116: =IFERROR(IF(K115>0,F115*Hệ_số_hoạt_động+IF(Cân_nặng_mong_muốn="Duy trì",0,IF(Cân_nặng_mong_muốn="GIẢM",-500,IF(Cân_nặng_mong_muốn="Tăng",500))),""),"") -> 1652 | H116: =IFERROR(F116*(Hệ_số_hoạt_động),"") -> 2152 | I116: 499 | J116: 101 | K116: =IFERROR(IF(_xlfn.SINGLE(Tiêu_chuẩn),J116/_xlfn.SINGLE(Calo_Pound),J116/_xlfn.SINGLE(Calo_Pound)/2.2),"") -> 0.0 | L116: =IFERROR(Cân_nặng_cần_tăng_giảm-K116,"") -> 14.97 | M116: =IFERROR(IF(B115<>"",L116/(Cân_nặng_cần_tăng_giảm),""),"") -> 100%
B117: 2022-11-28 | D117: 107 | E117: 134.9 | F117: =IFERROR(BMR_chạy,"") -> 1387 | G117: =IFERROR(IF(K116>0,F116*Hệ_số_hoạt_động+IF(Cân_nặng_mong_muốn="Duy trì",0,IF(Cân_nặng_mong_muốn="GIẢM",-500,IF(Cân_nặng_mong_muốn="Tăng",500))),""),"") -> 1652 | H117: =IFERROR(F117*(Hệ_số_hoạt_động),"") -> 2151 | I117: 499 | J117: -398 | K117: =IFERROR(IF(_xlfn.SINGLE(Tiêu_chuẩn),J117/_xlfn.SINGLE(Calo_Pound),J117/_xlfn.SINGLE(Calo_Pound)/2.2),"") -> -0.1 | L117: =IFERROR(Cân_nặng_cần_tăng_giảm-K117,"") -> 15.11 | M117: =IFERROR(IF(B116<>"",L117/(Cân_nặng_cần_tăng_giảm),""),"") -> 101%
F118: =IFERROR(BMR_chạy,"") ->  | G118: =IFERROR(IF(K117>0,F117*Hệ_số_hoạt_động+IF(Cân_nặng_mong_muốn="Duy trì",0,IF(Cân_nặng_mong_muốn="GIẢM",-500,IF(Cân_nặng_mong_muốn="Tăng",500))),""),"") ->  | H118: =IFERROR(F118*(Hệ_số_hoạt_động),"") ->  | K118: =IFERROR(IF(_xlfn.SINGLE(Tiêu_chuẩn),J118/_xlfn.SINGLE(Calo_Pound),J118/_xlfn.SINGLE(Calo_Pound)/2.2),"") ->  | L118: =IFERROR(Cân_nặng_cần_tăng_giảm-K118,"") ->  | M118: =IFERROR(IF(B117<>"",L118/(Cân_nặng_cần_tăng_giảm),""),"") -> 
F119: =IFERROR(BMR_chạy,"") ->  | G119: =IFERROR(IF(K118>0,F118*Hệ_số_hoạt_động+IF(Cân_nặng_mong_muốn="Duy trì",0,IF(Cân_nặng_mong_muốn="GIẢM",-500,IF(Cân_nặng_mong_muốn="Tăng",500))),""),"") ->  | H119: =IFERROR(F119*(Hệ_số_hoạt_động),"") ->  | K119: =IFERROR(IF(_xlfn.SINGLE(Tiêu_chuẩn),J119/_xlfn.SINGLE(Calo_Pound),J119/_xlfn.SINGLE(Calo_Pound)/2.2),"") ->  | L119: =IFERROR(Cân_nặng_cần_tăng_giảm-K119,"") ->  | M119: =IFERROR(IF(B118<>"",L119/(Cân_nặng_cần_tăng_giảm),""),"") -> 
F120: =IFERROR(BMR_chạy,"") ->  | G120: =IFERROR(IF(K119>0,F119*Hệ_số_hoạt_động+IF(Cân_nặng_mong_muốn="Duy trì",0,IF(Cân_nặng_mong_muốn="GIẢM",-500,IF(Cân_nặng_mong_muốn="Tăng",500))),""),"") ->  | H120: =IFERROR(F120*(Hệ_số_hoạt_động),"") ->  | K120: =IFERROR(IF(_xlfn.SINGLE(Tiêu_chuẩn),J120/_xlfn.SINGLE(Calo_Pound),J120/_xlfn.SINGLE(Calo_Pound)/2.2),"") ->  | L120: =IFERROR(Cân_nặng_cần_tăng_giảm-K120,"") ->  | M120: =IFERROR(IF(B119<>"",L120/(Cân_nặng_cần_tăng_giảm),""),"") -> 
F121: =IFERROR(BMR_chạy,"") ->  | G121: =IFERROR(IF(K120>0,F120*Hệ_số_hoạt_động+IF(Cân_nặng_mong_muốn="Duy trì",0,IF(Cân_nặng_mong_muốn="GIẢM",-500,IF(Cân_nặng_mong_muốn="Tăng",500))),""),"") ->  | H121: =IFERROR(F121*(Hệ_số_hoạt_động),"") ->  | K121: =IFERROR(IF(_xlfn.SINGLE(Tiêu_chuẩn),J121/_xlfn.SINGLE(Calo_Pound),J121/_xlfn.SINGLE(Calo_Pound)/2.2),"") ->  | L121: =IFERROR(Cân_nặng_cần_tăng_giảm-K121,"") ->  | M121: =IFERROR(IF(B120<>"",L121/(Cân_nặng_cần_tăng_giảm),""),"") -> 
F122: =IFERROR(BMR_chạy,"") ->  | G122: =IFERROR(IF(K121>0,F121*Hệ_số_hoạt_động+IF(Cân_nặng_mong_muốn="Duy trì",0,IF(Cân_nặng_mong_muốn="GIẢM",-500,IF(Cân_nặng_mong_muốn="Tăng",500))),""),"") ->  | H122: =IFERROR(F122*(Hệ_số_hoạt_động),"") ->  | K122: =IFERROR(IF(_xlfn.SINGLE(Tiêu_chuẩn),J122/_xlfn.SINGLE(Calo_Pound),J122/_xlfn.SINGLE(Calo_Pound)/2.2),"") ->  | L122: =IFERROR(Cân_nặng_cần_tăng_giảm-K122,"") ->  | M122: =IFERROR(IF(B121<>"",L122/(Cân_nặng_cần_tăng_giảm),""),"") -> 
F123: =IFERROR(BMR_chạy,"") ->  | G123: =IFERROR(IF(K122>0,F122*Hệ_số_hoạt_động+IF(Cân_nặng_mong_muốn="Duy trì",0,IF(Cân_nặng_mong_muốn="GIẢM",-500,IF(Cân_nặng_mong_muốn="Tăng",500))),""),"") ->  | H123: =IFERROR(F123*(Hệ_số_hoạt_động),"") ->  | K123: =IFERROR(IF(_xlfn.SINGLE(Tiêu_chuẩn),J123/_xlfn.SINGLE(Calo_Pound),J123/_xlfn.SINGLE(Calo_Pound)/2.2),"") ->  | L123: =IFERROR(Cân_nặng_cần_tăng_giảm-K123,"") ->  | M123: =IFERROR(IF(B122<>"",L123/(Cân_nặng_cần_tăng_giảm),""),"") -> 
F124: =IFERROR(BMR_chạy,"") ->  | G124: =IFERROR(IF(K123>0,F123*Hệ_số_hoạt_động+IF(Cân_nặng_mong_muốn="Duy trì",0,IF(Cân_nặng_mong_muốn="GIẢM",-500,IF(Cân_nặng_mong_muốn="Tăng",500))),""),"") ->  | H124: =IFERROR(F124*(Hệ_số_hoạt_động),"") ->  | K124: =IFERROR(IF(_xlfn.SINGLE(Tiêu_chuẩn),J124/_xlfn.SINGLE(Calo_Pound),J124/_xlfn.SINGLE(Calo_Pound)/2.2),"") ->  | L124: =IFERROR(Cân_nặng_cần_tăng_giảm-K124,"") ->  | M124: =IFERROR(IF(B123<>"",L124/(Cân_nặng_cần_tăng_giảm),""),"") -> 
F125: =IFERROR(BMR_chạy,"") ->  | G125: =IFERROR(IF(K124>0,F124*Hệ_số_hoạt_động+IF(Cân_nặng_mong_muốn="Duy trì",0,IF(Cân_nặng_mong_muốn="GIẢM",-500,IF(Cân_nặng_mong_muốn="Tăng",500))),""),"") ->  | H125: =IFERROR(F125*(Hệ_số_hoạt_động),"") ->  | K125: =IFERROR(IF(_xlfn.SINGLE(Tiêu_chuẩn),J125/_xlfn.SINGLE(Calo_Pound),J125/_xlfn.SINGLE(Calo_Pound)/2.2),"") ->  | L125: =IFERROR(Cân_nặng_cần_tăng_giảm-K125,"") ->  | M125: =IFERROR(IF(B124<>"",L125/(Cân_nặng_cần_tăng_giảm),""),"") -> 
F126: =IFERROR(BMR_chạy,"") ->  | G126: =IFERROR(IF(K125>0,F125*Hệ_số_hoạt_động+IF(Cân_nặng_mong_muốn="Duy trì",0,IF(Cân_nặng_mong_muốn="GIẢM",-500,IF(Cân_nặng_mong_muốn="Tăng",500))),""),"") ->  | H126: =IFERROR(F126*(Hệ_số_hoạt_động),"") ->  | K126: =IFERROR(IF(_xlfn.SINGLE(Tiêu_chuẩn),J126/_xlfn.SINGLE(Calo_Pound),J126/_xlfn.SINGLE(Calo_Pound)/2.2),"") ->  | L126: =IFERROR(Cân_nặng_cần_tăng_giảm-K126,"") ->  | M126: =IFERROR(IF(B125<>"",L126/(Cân_nặng_cần_tăng_giảm),""),"") -> 
F127: =IFERROR(BMR_chạy,"") ->  | G127: =IFERROR(IF(K126>0,F126*Hệ_số_hoạt_động+IF(Cân_nặng_mong_muốn="Duy trì",0,IF(Cân_nặng_mong_muốn="GIẢM",-500,IF(Cân_nặng_mong_muốn="Tăng",500))),""),"") ->  | H127: =IFERROR(F127*(Hệ_số_hoạt_động),"") ->  | K127: =IFERROR(IF(_xlfn.SINGLE(Tiêu_chuẩn),J127/_xlfn.SINGLE(Calo_Pound),J127/_xlfn.SINGLE(Calo_Pound)/2.2),"") ->  | L127: =IFERROR(Cân_nặng_cần_tăng_giảm-K127,"") ->  | M127: =IFERROR(IF(B126<>"",L127/(Cân_nặng_cần_tăng_giảm),""),"") -> 
F128: =IFERROR(BMR_chạy,"") ->  | G128: =IFERROR(IF(K127>0,F127*Hệ_số_hoạt_động+IF(Cân_nặng_mong_muốn="Duy trì",0,IF(Cân_nặng_mong_muốn="GIẢM",-500,IF(Cân_nặng_mong_muốn="Tăng",500))),""),"") ->  | H128: =IFERROR(F128*(Hệ_số_hoạt_động),"") ->  | K128: =IFERROR(IF(_xlfn.SINGLE(Tiêu_chuẩn),J128/_xlfn.SINGLE(Calo_Pound),J128/_xlfn.SINGLE(Calo_Pound)/2.2),"") ->  | L128: =IFERROR(Cân_nặng_cần_tăng_giảm-K128,"") ->  | M128: =IFERROR(IF(B127<>"",L128/(Cân_nặng_cần_tăng_giảm),""),"") -> 
F129: =IFERROR(BMR_chạy,"") ->  | G129: =IFERROR(IF(K128>0,F128*Hệ_số_hoạt_động+IF(Cân_nặng_mong_muốn="Duy trì",0,IF(Cân_nặng_mong_muốn="GIẢM",-500,IF(Cân_nặng_mong_muốn="Tăng",500))),""),"") ->  | H129: =IFERROR(F129*(Hệ_số_hoạt_động),"") ->  | K129: =IFERROR(IF(_xlfn.SINGLE(Tiêu_chuẩn),J129/_xlfn.SINGLE(Calo_Pound),J129/_xlfn.SINGLE(Calo_Pound)/2.2),"") ->  | L129: =IFERROR(Cân_nặng_cần_tăng_giảm-K129,"") ->  | M129: =IFERROR(IF(B128<>"",L129/(Cân_nặng_cần_tăng_giảm),""),"") -> 
F130: =IFERROR(BMR_chạy,"") ->  | G130: =IFERROR(IF(K129>0,F129*Hệ_số_hoạt_động+IF(Cân_nặng_mong_muốn="Duy trì",0,IF(Cân_nặng_mong_muốn="GIẢM",-500,IF(Cân_nặng_mong_muốn="Tăng",500))),""),"") ->  | H130: =IFERROR(F130*(Hệ_số_hoạt_động),"") ->  | K130: =IFERROR(IF(_xlfn.SINGLE(Tiêu_chuẩn),J130/_xlfn.SINGLE(Calo_Pound),J130/_xlfn.SINGLE(Calo_Pound)/2.2),"") ->  | L130: =IFERROR(Cân_nặng_cần_tăng_giảm-K130,"") ->  | M130: =IFERROR(IF(B129<>"",L130/(Cân_nặng_cần_tăng_giảm),""),"") -> 
F131: =IFERROR(BMR_chạy,"") ->  | G131: =IFERROR(IF(K130>0,F130*Hệ_số_hoạt_động+IF(Cân_nặng_mong_muốn="Duy trì",0,IF(Cân_nặng_mong_muốn="GIẢM",-500,IF(Cân_nặng_mong_muốn="Tăng",500))),""),"") ->  | H131: =IFERROR(F131*(Hệ_số_hoạt_động),"") ->  | K131: =IFERROR(IF(_xlfn.SINGLE(Tiêu_chuẩn),J131/_xlfn.SINGLE(Calo_Pound),J131/_xlfn.SINGLE(Calo_Pound)/2.2),"") ->  | L131: =IFERROR(Cân_nặng_cần_tăng_giảm-K131,"") ->  | M131: =IFERROR(IF(B130<>"",L131/(Cân_nặng_cần_tăng_giảm),""),"") -> 
F132: =IFERROR(BMR_chạy,"") ->  | G132: =IFERROR(IF(K131>0,F131*Hệ_số_hoạt_động+IF(Cân_nặng_mong_muốn="Duy trì",0,IF(Cân_nặng_mong_muốn="GIẢM",-500,IF(Cân_nặng_mong_muốn="Tăng",500))),""),"") ->  | H132: =IFERROR(F132*(Hệ_số_hoạt_động),"") ->  | K132: =IFERROR(IF(_xlfn.SINGLE(Tiêu_chuẩn),J132/_xlfn.SINGLE(Calo_Pound),J132/_xlfn.SINGLE(Calo_Pound)/2.2),"") ->  | L132: =IFERROR(Cân_nặng_cần_tăng_giảm-K132,"") ->  | M132: =IFERROR(IF(B131<>"",L132/(Cân_nặng_cần_tăng_giảm),""),"") -> 
F133: =IFERROR(BMR_chạy,"") ->  | G133: =IFERROR(IF(K132>0,F132*Hệ_số_hoạt_động+IF(Cân_nặng_mong_muốn="Duy trì",0,IF(Cân_nặng_mong_muốn="GIẢM",-500,IF(Cân_nặng_mong_muốn="Tăng",500))),""),"") ->  | H133: =IFERROR(F133*(Hệ_số_hoạt_động),"") ->  | K133: =IFERROR(IF(_xlfn.SINGLE(Tiêu_chuẩn),J133/_xlfn.SINGLE(Calo_Pound),J133/_xlfn.SINGLE(Calo_Pound)/2.2),"") ->  | L133: =IFERROR(Cân_nặng_cần_tăng_giảm-K133,"") ->  | M133: =IFERROR(IF(B132<>"",L133/(Cân_nặng_cần_tăng_giảm),""),"") -> 
F134: =IFERROR(BMR_chạy,"") ->  | G134: =IFERROR(IF(K133>0,F133*Hệ_số_hoạt_động+IF(Cân_nặng_mong_muốn="Duy trì",0,IF(Cân_nặng_mong_muốn="GIẢM",-500,IF(Cân_nặng_mong_muốn="Tăng",500))),""),"") ->  | H134: =IFERROR(F134*(Hệ_số_hoạt_động),"") ->  | K134: =IFERROR(IF(_xlfn.SINGLE(Tiêu_chuẩn),J134/_xlfn.SINGLE(Calo_Pound),J134/_xlfn.SINGLE(Calo_Pound)/2.2),"") ->  | L134: =IFERROR(Cân_nặng_cần_tăng_giảm-K134,"") ->  | M134: =IFERROR(IF(B133<>"",L134/(Cân_nặng_cần_tăng_giảm),""),"") -> 
F135: =IFERROR(BMR_chạy,"") ->  | G135: =IFERROR(IF(K134>0,F134*Hệ_số_hoạt_động+IF(Cân_nặng_mong_muốn="Duy trì",0,IF(Cân_nặng_mong_muốn="GIẢM",-500,IF(Cân_nặng_mong_muốn="Tăng",500))),""),"") ->  | H135: =IFERROR(F135*(Hệ_số_hoạt_động),"") ->  | K135: =IFERROR(IF(_xlfn.SINGLE(Tiêu_chuẩn),J135/_xlfn.SINGLE(Calo_Pound),J135/_xlfn.SINGLE(Calo_Pound)/2.2),"") ->  | L135: =IFERROR(Cân_nặng_cần_tăng_giảm-K135,"") ->  | M135: =IFERROR(IF(B134<>"",L135/(Cân_nặng_cần_tăng_giảm),""),"") -> 
F136: =IFERROR(BMR_chạy,"") ->  | G136: =IFERROR(IF(K135>0,F135*Hệ_số_hoạt_động+IF(Cân_nặng_mong_muốn="Duy trì",0,IF(Cân_nặng_mong_muốn="GIẢM",-500,IF(Cân_nặng_mong_muốn="Tăng",500))),""),"") ->  | H136: =IFERROR(F136*(Hệ_số_hoạt_động),"") ->  | K136: =IFERROR(IF(_xlfn.SINGLE(Tiêu_chuẩn),J136/_xlfn.SINGLE(Calo_Pound),J136/_xlfn.SINGLE(Calo_Pound)/2.2),"") ->  | L136: =IFERROR(Cân_nặng_cần_tăng_giảm-K136,"") ->  | M136: =IFERROR(IF(B135<>"",L136/(Cân_nặng_cần_tăng_giảm),""),"") -> 
F137: =IFERROR(BMR_chạy,"") ->  | G137: =IFERROR(IF(K136>0,F136*Hệ_số_hoạt_động+IF(Cân_nặng_mong_muốn="Duy trì",0,IF(Cân_nặng_mong_muốn="GIẢM",-500,IF(Cân_nặng_mong_muốn="Tăng",500))),""),"") ->  | H137: =IFERROR(F137*(Hệ_số_hoạt_động),"") ->  | K137: =IFERROR(IF(_xlfn.SINGLE(Tiêu_chuẩn),J137/_xlfn.SINGLE(Calo_Pound),J137/_xlfn.SINGLE(Calo_Pound)/2.2),"") ->  | L137: =IFERROR(Cân_nặng_cần_tăng_giảm-K137,"") ->  | M137: =IFERROR(IF(B136<>"",L137/(Cân_nặng_cần_tăng_giảm),""),"") -> 
F138: =IFERROR(BMR_chạy,"") ->  | G138: =IFERROR(IF(K137>0,F137*Hệ_số_hoạt_động+IF(Cân_nặng_mong_muốn="Duy trì",0,IF(Cân_nặng_mong_muốn="GIẢM",-500,IF(Cân_nặng_mong_muốn="Tăng",500))),""),"") ->  | H138: =IFERROR(F138*(Hệ_số_hoạt_động),"") ->  | K138: =IFERROR(IF(_xlfn.SINGLE(Tiêu_chuẩn),J138/_xlfn.SINGLE(Calo_Pound),J138/_xlfn.SINGLE(Calo_Pound)/2.2),"") ->  | L138: =IFERROR(Cân_nặng_cần_tăng_giảm-K138,"") ->  | M138: =IFERROR(IF(B137<>"",L138/(Cân_nặng_cần_tăng_giảm),""),"") -> 
F139: =IFERROR(BMR_chạy,"") ->  | G139: =IFERROR(IF(K138>0,F138*Hệ_số_hoạt_động+IF(Cân_nặng_mong_muốn="Duy trì",0,IF(Cân_nặng_mong_muốn="GIẢM",-500,IF(Cân_nặng_mong_muốn="Tăng",500))),""),"") ->  | H139: =IFERROR(F139*(Hệ_số_hoạt_động),"") ->  | I139: =IFERROR(IF(Cân_nặng_mong_muốn="Tăng",G139-H139,H139-G139),"") ->  | K139: =IFERROR(IF(_xlfn.SINGLE(Tiêu_chuẩn),J139/_xlfn.SINGLE(Calo_Pound),J139/_xlfn.SINGLE(Calo_Pound)/2.2),"") ->  | L139: =IFERROR(Cân_nặng_cần_tăng_giảm-K139,"") ->  | M139: =IFERROR(IF(B138<>"",L139/(Cân_nặng_cần_tăng_giảm),""),"") -> 
B140: =IFERROR(IF(K139>0,B139+1,""),"") ->  | D140: =IFERROR(IF(K139>0,D139+1,""),"") ->  | F140: =IFERROR(BMR_chạy,"") ->  | G140: =IFERROR(IF(K139>0,F139*Hệ_số_hoạt_động+IF(Cân_nặng_mong_muốn="Duy trì",0,IF(Cân_nặng_mong_muốn="GIẢM",-500,IF(Cân_nặng_mong_muốn="Tăng",500))),""),"") ->  | H140: =IFERROR(F140*(Hệ_số_hoạt_động),"") ->  | K140: =IFERROR(IF(_xlfn.SINGLE(Tiêu_chuẩn),J140/_xlfn.SINGLE(Calo_Pound),J140/_xlfn.SINGLE(Calo_Pound)/2.2),"") ->  | L140: =IFERROR(Cân_nặng_cần_tăng_giảm-K140,"") ->  | M140: =IFERROR(IF(B139<>"",L140/(Cân_nặng_cần_tăng_giảm),""),"") -> 
C141: =IFERROR(IF(D141<>"",IF(MOD(D141,7)=1,(D140/7)+1,""),""),"") ->  | E141: =IFERROR(IF($D141<>"",E140-(I140/_xlfn.SINGLE(Calo_Pound)),""),"") ->  | F141: =IFERROR(BMR_chạy,"") ->  | G141: =IFERROR(IF(K140>0,F140*Hệ_số_hoạt_động+IF(Cân_nặng_mong_muốn="Duy trì",0,IF(Cân_nặng_mong_muốn="GIẢM",-500,IF(Cân_nặng_mong_muốn="Tăng",500))),""),"") ->  | H141: =IFERROR(F141*(Hệ_số_hoạt_động),"") ->  | J141: =IFERROR(J140-I141,"") ->  | K141: =IFERROR(IF(_xlfn.SINGLE(Tiêu_chuẩn),J141/_xlfn.SINGLE(Calo_Pound),J141/_xlfn.SINGLE(Calo_Pound)/2.2),"") ->  | L141: =IFERROR(Cân_nặng_cần_tăng_giảm-K141,"") ->  | M141: =IFERROR(IF(B140<>"",L141/(Cân_nặng_cần_tăng_giảm),""),"") -> 
F142: =IFERROR(BMR_chạy,"") ->  | G142: =IFERROR(IF(K141>0,F141*Hệ_số_hoạt_động+IF(Cân_nặng_mong_muốn="Duy trì",0,IF(Cân_nặng_mong_muốn="GIẢM",-500,IF(Cân_nặng_mong_muốn="Tăng",500))),""),"") ->  | H142: =IFERROR(F142*(Hệ_số_hoạt_động),"") ->  | K142: =IFERROR(IF(_xlfn.SINGLE(Tiêu_chuẩn),J142/_xlfn.SINGLE(Calo_Pound),J142/_xlfn.SINGLE(Calo_Pound)/2.2),"") ->  | L142: =IFERROR(Cân_nặng_cần_tăng_giảm-K142,"") ->  | M142: =IFERROR(IF(B141<>"",L142/(Cân_nặng_cần_tăng_giảm),""),"") -> 
F143: =IFERROR(BMR_chạy,"") ->  | G143: =IFERROR(IF(K142>0,F142*Hệ_số_hoạt_động+IF(Cân_nặng_mong_muốn="Duy trì",0,IF(Cân_nặng_mong_muốn="GIẢM",-500,IF(Cân_nặng_mong_muốn="Tăng",500))),""),"") ->  | H143: =IFERROR(F143*(Hệ_số_hoạt_động),"") ->  | K143: =IFERROR(IF(_xlfn.SINGLE(Tiêu_chuẩn),J143/_xlfn.SINGLE(Calo_Pound),J143/_xlfn.SINGLE(Calo_Pound)/2.2),"") ->  | L143: =IFERROR(Cân_nặng_cần_tăng_giảm-K143,"") ->  | M143: =IFERROR(IF(B142<>"",L143/(Cân_nặng_cần_tăng_giảm),""),"") -> 
F144: =IFERROR(BMR_chạy,"") ->  | G144: =IFERROR(IF(K143>0,F143*Hệ_số_hoạt_động+IF(Cân_nặng_mong_muốn="Duy trì",0,IF(Cân_nặng_mong_muốn="GIẢM",-500,IF(Cân_nặng_mong_muốn="Tăng",500))),""),"") ->  | H144: =IFERROR(F144*(Hệ_số_hoạt_động),"") ->  | K144: =IFERROR(IF(_xlfn.SINGLE(Tiêu_chuẩn),J144/_xlfn.SINGLE(Calo_Pound),J144/_xlfn.SINGLE(Calo_Pound)/2.2),"") ->  | L144: =IFERROR(Cân_nặng_cần_tăng_giảm-K144,"") ->  | M144: =IFERROR(IF(B143<>"",L144/(Cân_nặng_cần_tăng_giảm),""),"") -> 
F145: =IFERROR(BMR_chạy,"") ->  | G145: =IFERROR(IF(K144>0,F144*Hệ_số_hoạt_động+IF(Cân_nặng_mong_muốn="Duy trì",0,IF(Cân_nặng_mong_muốn="GIẢM",-500,IF(Cân_nặng_mong_muốn="Tăng",500))),""),"") ->  | H145: =IFERROR(F145*(Hệ_số_hoạt_động),"") ->  | K145: =IFERROR(IF(_xlfn.SINGLE(Tiêu_chuẩn),J145/_xlfn.SINGLE(Calo_Pound),J145/_xlfn.SINGLE(Calo_Pound)/2.2),"") ->  | L145: =IFERROR(Cân_nặng_cần_tăng_giảm-K145,"") ->  | M145: =IFERROR(IF(B144<>"",L145/(Cân_nặng_cần_tăng_giảm),""),"") -> 
F146: =IFERROR(BMR_chạy,"") ->  | G146: =IFERROR(IF(K145>0,F145*Hệ_số_hoạt_động+IF(Cân_nặng_mong_muốn="Duy trì",0,IF(Cân_nặng_mong_muốn="GIẢM",-500,IF(Cân_nặng_mong_muốn="Tăng",500))),""),"") ->  | H146: =IFERROR(F146*(Hệ_số_hoạt_động),"") ->  | K146: =IFERROR(IF(_xlfn.SINGLE(Tiêu_chuẩn),J146/_xlfn.SINGLE(Calo_Pound),J146/_xlfn.SINGLE(Calo_Pound)/2.2),"") ->  | L146: =IFERROR(Cân_nặng_cần_tăng_giảm-K146,"") ->  | M146: =IFERROR(IF(B145<>"",L146/(Cân_nặng_cần_tăng_giảm),""),"") -> 
F147: =IFERROR(BMR_chạy,"") ->  | G147: =IFERROR(IF(K146>0,F146*Hệ_số_hoạt_động+IF(Cân_nặng_mong_muốn="Duy trì",0,IF(Cân_nặng_mong_muốn="GIẢM",-500,IF(Cân_nặng_mong_muốn="Tăng",500))),""),"") ->  | H147: =IFERROR(F147*(Hệ_số_hoạt_động),"") ->  | K147: =IFERROR(IF(_xlfn.SINGLE(Tiêu_chuẩn),J147/_xlfn.SINGLE(Calo_Pound),J147/_xlfn.SINGLE(Calo_Pound)/2.2),"") ->  | L147: =IFERROR(Cân_nặng_cần_tăng_giảm-K147,"") ->  | M147: =IFERROR(IF(B146<>"",L147/(Cân_nặng_cần_tăng_giảm),""),"") -> 
F148: =IFERROR(BMR_chạy,"") ->  | G148: =IFERROR(IF(K147>0,F147*Hệ_số_hoạt_động+IF(Cân_nặng_mong_muốn="Duy trì",0,IF(Cân_nặng_mong_muốn="GIẢM",-500,IF(Cân_nặng_mong_muốn="Tăng",500))),""),"") ->  | H148: =IFERROR(F148*(Hệ_số_hoạt_động),"") ->  | K148: =IFERROR(IF(_xlfn.SINGLE(Tiêu_chuẩn),J148/_xlfn.SINGLE(Calo_Pound),J148/_xlfn.SINGLE(Calo_Pound)/2.2),"") ->  | L148: =IFERROR(Cân_nặng_cần_tăng_giảm-K148,"") ->  | M148: =IFERROR(IF(B147<>"",L148/(Cân_nặng_cần_tăng_giảm),""),"") -> 
F149: =IFERROR(BMR_chạy,"") ->  | G149: =IFERROR(IF(K148>0,F148*Hệ_số_hoạt_động+IF(Cân_nặng_mong_muốn="Duy trì",0,IF(Cân_nặng_mong_muốn="GIẢM",-500,IF(Cân_nặng_mong_muốn="Tăng",500))),""),"") ->  | H149: =IFERROR(F149*(Hệ_số_hoạt_động),"") ->  | K149: =IFERROR(IF(_xlfn.SINGLE(Tiêu_chuẩn),J149/_xlfn.SINGLE(Calo_Pound),J149/_xlfn.SINGLE(Calo_Pound)/2.2),"") ->  | L149: =IFERROR(Cân_nặng_cần_tăng_giảm-K149,"") ->  | M149: =IFERROR(IF(B148<>"",L149/(Cân_nặng_cần_tăng_giảm),""),"") -> 
F150: =IFERROR(BMR_chạy,"") ->  | G150: =IFERROR(IF(K149>0,F149*Hệ_số_hoạt_động+IF(Cân_nặng_mong_muốn="Duy trì",0,IF(Cân_nặng_mong_muốn="GIẢM",-500,IF(Cân_nặng_mong_muốn="Tăng",500))),""),"") ->  | H150: =IFERROR(F150*(Hệ_số_hoạt_động),"") ->  | K150: =IFERROR(IF(_xlfn.SINGLE(Tiêu_chuẩn),J150/_xlfn.SINGLE(Calo_Pound),J150/_xlfn.SINGLE(Calo_Pound)/2.2),"") ->  | L150: =IFERROR(Cân_nặng_cần_tăng_giảm-K150,"") ->  | M150: =IFERROR(IF(B149<>"",L150/(Cân_nặng_cần_tăng_giảm),""),"") -> 
F151: =IFERROR(BMR_chạy,"") ->  | G151: =IFERROR(IF(K150>0,F150*Hệ_số_hoạt_động+IF(Cân_nặng_mong_muốn="Duy trì",0,IF(Cân_nặng_mong_muốn="GIẢM",-500,IF(Cân_nặng_mong_muốn="Tăng",500))),""),"") ->  | H151: =IFERROR(F151*(Hệ_số_hoạt_động),"") ->  | K151: =IFERROR(IF(_xlfn.SINGLE(Tiêu_chuẩn),J151/_xlfn.SINGLE(Calo_Pound),J151/_xlfn.SINGLE(Calo_Pound)/2.2),"") ->  | L151: =IFERROR(Cân_nặng_cần_tăng_giảm-K151,"") ->  | M151: =IFERROR(IF(B150<>"",L151/(Cân_nặng_cần_tăng_giảm),""),"") -> 
F152: =IFERROR(BMR_chạy,"") ->  | G152: =IFERROR(IF(K151>0,F151*Hệ_số_hoạt_động+IF(Cân_nặng_mong_muốn="Duy trì",0,IF(Cân_nặng_mong_muốn="GIẢM",-500,IF(Cân_nặng_mong_muốn="Tăng",500))),""),"") ->  | H152: =IFERROR(F152*(Hệ_số_hoạt_động),"") ->  | K152: =IFERROR(IF(_xlfn.SINGLE(Tiêu_chuẩn),J152/_xlfn.SINGLE(Calo_Pound),J152/_xlfn.SINGLE(Calo_Pound)/2.2),"") ->  | L152: =IFERROR(Cân_nặng_cần_tăng_giảm-K152,"") ->  | M152: =IFERROR(IF(B151<>"",L152/(Cân_nặng_cần_tăng_giảm),""),"") -> 
F153: =IFERROR(BMR_chạy,"") ->  | G153: =IFERROR(IF(K152>0,F152*Hệ_số_hoạt_động+IF(Cân_nặng_mong_muốn="Duy trì",0,IF(Cân_nặng_mong_muốn="GIẢM",-500,IF(Cân_nặng_mong_muốn="Tăng",500))),""),"") ->  | H153: =IFERROR(F153*(Hệ_số_hoạt_động),"") ->  | K153: =IFERROR(IF(_xlfn.SINGLE(Tiêu_chuẩn),J153/_xlfn.SINGLE(Calo_Pound),J153/_xlfn.SINGLE(Calo_Pound)/2.2),"") ->  | L153: =IFERROR(Cân_nặng_cần_tăng_giảm-K153,"") ->  | M153: =IFERROR(IF(B152<>"",L153/(Cân_nặng_cần_tăng_giảm),""),"") -> 
F154: =IFERROR(BMR_chạy,"") ->  | G154: =IFERROR(IF(K153>0,F153*Hệ_số_hoạt_động+IF(Cân_nặng_mong_muốn="Duy trì",0,IF(Cân_nặng_mong_muốn="GIẢM",-500,IF(Cân_nặng_mong_muốn="Tăng",500))),""),"") ->  | H154: =IFERROR(F154*(Hệ_số_hoạt_động),"") ->  | K154: =IFERROR(IF(_xlfn.SINGLE(Tiêu_chuẩn),J154/_xlfn.SINGLE(Calo_Pound),J154/_xlfn.SINGLE(Calo_Pound)/2.2),"") ->  | L154: =IFERROR(Cân_nặng_cần_tăng_giảm-K154,"") ->  | M154: =IFERROR(IF(B153<>"",L154/(Cân_nặng_cần_tăng_giảm),""),"") -> 
F155: =IFERROR(BMR_chạy,"") ->  | G155: =IFERROR(IF(K154>0,F154*Hệ_số_hoạt_động+IF(Cân_nặng_mong_muốn="Duy trì",0,IF(Cân_nặng_mong_muốn="GIẢM",-500,IF(Cân_nặng_mong_muốn="Tăng",500))),""),"") ->  | H155: =IFERROR(F155*(Hệ_số_hoạt_động),"") ->  | K155: =IFERROR(IF(_xlfn.SINGLE(Tiêu_chuẩn),J155/_xlfn.SINGLE(Calo_Pound),J155/_xlfn.SINGLE(Calo_Pound)/2.2),"") ->  | L155: =IFERROR(Cân_nặng_cần_tăng_giảm-K155,"") ->  | M155: =IFERROR(IF(B154<>"",L155/(Cân_nặng_cần_tăng_giảm),""),"") -> 
F156: =IFERROR(BMR_chạy,"") ->  | G156: =IFERROR(IF(K155>0,F155*Hệ_số_hoạt_động+IF(Cân_nặng_mong_muốn="Duy trì",0,IF(Cân_nặng_mong_muốn="GIẢM",-500,IF(Cân_nặng_mong_muốn="Tăng",500))),""),"") ->  | H156: =IFERROR(F156*(Hệ_số_hoạt_động),"") ->  | K156: =IFERROR(IF(_xlfn.SINGLE(Tiêu_chuẩn),J156/_xlfn.SINGLE(Calo_Pound),J156/_xlfn.SINGLE(Calo_Pound)/2.2),"") ->  | L156: =IFERROR(Cân_nặng_cần_tăng_giảm-K156,"") ->  | M156: =IFERROR(IF(B155<>"",L156/(Cân_nặng_cần_tăng_giảm),""),"") -> 
F157: =IFERROR(BMR_chạy,"") ->  | G157: =IFERROR(IF(K156>0,F156*Hệ_số_hoạt_động+IF(Cân_nặng_mong_muốn="Duy trì",0,IF(Cân_nặng_mong_muốn="GIẢM",-500,IF(Cân_nặng_mong_muốn="Tăng",500))),""),"") ->  | H157: =IFERROR(F157*(Hệ_số_hoạt_động),"") ->  | K157: =IFERROR(IF(_xlfn.SINGLE(Tiêu_chuẩn),J157/_xlfn.SINGLE(Calo_Pound),J157/_xlfn.SINGLE(Calo_Pound)/2.2),"") ->  | L157: =IFERROR(Cân_nặng_cần_tăng_giảm-K157,"") ->  | M157: =IFERROR(IF(B156<>"",L157/(Cân_nặng_cần_tăng_giảm),""),"") -> 
F158: =IFERROR(BMR_chạy,"") ->  | G158: =IFERROR(IF(K157>0,F157*Hệ_số_hoạt_động+IF(Cân_nặng_mong_muốn="Duy trì",0,IF(Cân_nặng_mong_muốn="GIẢM",-500,IF(Cân_nặng_mong_muốn="Tăng",500))),""),"") ->  | H158: =IFERROR(F158*(Hệ_số_hoạt_động),"") ->  | K158: =IFERROR(IF(_xlfn.SINGLE(Tiêu_chuẩn),J158/_xlfn.SINGLE(Calo_Pound),J158/_xlfn.SINGLE(Calo_Pound)/2.2),"") ->  | L158: =IFERROR(Cân_nặng_cần_tăng_giảm-K158,"") ->  | M158: =IFERROR(IF(B157<>"",L158/(Cân_nặng_cần_tăng_giảm),""),"") -> 
F159: =IFERROR(BMR_chạy,"") ->  | G159: =IFERROR(IF(K158>0,F158*Hệ_số_hoạt_động+IF(Cân_nặng_mong_muốn="Duy trì",0,IF(Cân_nặng_mong_muốn="GIẢM",-500,IF(Cân_nặng_mong_muốn="Tăng",500))),""),"") ->  | H159: =IFERROR(F159*(Hệ_số_hoạt_động),"") ->  | K159: =IFERROR(IF(_xlfn.SINGLE(Tiêu_chuẩn),J159/_xlfn.SINGLE(Calo_Pound),J159/_xlfn.SINGLE(Calo_Pound)/2.2),"") ->  | L159: =IFERROR(Cân_nặng_cần_tăng_giảm-K159,"") ->  | M159: =IFERROR(IF(B158<>"",L159/(Cân_nặng_cần_tăng_giảm),""),"") -> 
F160: =IFERROR(BMR_chạy,"") ->  | G160: =IFERROR(IF(K159>0,F159*Hệ_số_hoạt_động+IF(Cân_nặng_mong_muốn="Duy trì",0,IF(Cân_nặng_mong_muốn="GIẢM",-500,IF(Cân_nặng_mong_muốn="Tăng",500))),""),"") ->  | H160: =IFERROR(F160*(Hệ_số_hoạt_động),"") ->  | K160: =IFERROR(IF(_xlfn.SINGLE(Tiêu_chuẩn),J160/_xlfn.SINGLE(Calo_Pound),J160/_xlfn.SINGLE(Calo_Pound)/2.2),"") ->  | L160: =IFERROR(Cân_nặng_cần_tăng_giảm-K160,"") ->  | M160: =IFERROR(IF(B159<>"",L160/(Cân_nặng_cần_tăng_giảm),""),"") -> 
F161: =IFERROR(BMR_chạy,"") ->  | G161: =IFERROR(IF(K160>0,F160*Hệ_số_hoạt_động+IF(Cân_nặng_mong_muốn="Duy trì",0,IF(Cân_nặng_mong_muốn="GIẢM",-500,IF(Cân_nặng_mong_muốn="Tăng",500))),""),"") ->  | H161: =IFERROR(F161*(Hệ_số_hoạt_động),"") ->  | K161: =IFERROR(IF(_xlfn.SINGLE(Tiêu_chuẩn),J161/_xlfn.SINGLE(Calo_Pound),J161/_xlfn.SINGLE(Calo_Pound)/2.2),"") ->  | L161: =IFERROR(Cân_nặng_cần_tăng_giảm-K161,"") ->  | M161: =IFERROR(IF(B160<>"",L161/(Cân_nặng_cần_tăng_giảm),""),"") -> 
F162: =IFERROR(BMR_chạy,"") ->  | G162: =IFERROR(IF(K161>0,F161*Hệ_số_hoạt_động+IF(Cân_nặng_mong_muốn="Duy trì",0,IF(Cân_nặng_mong_muốn="GIẢM",-500,IF(Cân_nặng_mong_muốn="Tăng",500))),""),"") ->  | H162: =IFERROR(F162*(Hệ_số_hoạt_động),"") ->  | K162: =IFERROR(IF(_xlfn.SINGLE(Tiêu_chuẩn),J162/_xlfn.SINGLE(Calo_Pound),J162/_xlfn.SINGLE(Calo_Pound)/2.2),"") ->  | L162: =IFERROR(Cân_nặng_cần_tăng_giảm-K162,"") ->  | M162: =IFERROR(IF(B161<>"",L162/(Cân_nặng_cần_tăng_giảm),""),"") -> 
F163: =IFERROR(BMR_chạy,"") ->  | G163: =IFERROR(IF(K162>0,F162*Hệ_số_hoạt_động+IF(Cân_nặng_mong_muốn="Duy trì",0,IF(Cân_nặng_mong_muốn="GIẢM",-500,IF(Cân_nặng_mong_muốn="Tăng",500))),""),"") ->  | H163: =IFERROR(F163*(Hệ_số_hoạt_động),"") ->  | K163: =IFERROR(IF(_xlfn.SINGLE(Tiêu_chuẩn),J163/_xlfn.SINGLE(Calo_Pound),J163/_xlfn.SINGLE(Calo_Pound)/2.2),"") ->  | L163: =IFERROR(Cân_nặng_cần_tăng_giảm-K163,"") ->  | M163: =IFERROR(IF(B162<>"",L163/(Cân_nặng_cần_tăng_giảm),""),"") -> 
F164: =IFERROR(BMR_chạy,"") ->  | G164: =IFERROR(IF(K163>0,F163*Hệ_số_hoạt_động+IF(Cân_nặng_mong_muốn="Duy trì",0,IF(Cân_nặng_mong_muốn="GIẢM",-500,IF(Cân_nặng_mong_muốn="Tăng",500))),""),"") ->  | H164: =IFERROR(F164*(Hệ_số_hoạt_động),"") ->  | K164: =IFERROR(IF(_xlfn.SINGLE(Tiêu_chuẩn),J164/_xlfn.SINGLE(Calo_Pound),J164/_xlfn.SINGLE(Calo_Pound)/2.2),"") ->  | L164: =IFERROR(Cân_nặng_cần_tăng_giảm-K164,"") ->  | M164: =IFERROR(IF(B163<>"",L164/(Cân_nặng_cần_tăng_giảm),""),"") -> 
F165: =IFERROR(BMR_chạy,"") ->  | G165: =IFERROR(IF(K164>0,F164*Hệ_số_hoạt_động+IF(Cân_nặng_mong_muốn="Duy trì",0,IF(Cân_nặng_mong_muốn="GIẢM",-500,IF(Cân_nặng_mong_muốn="Tăng",500))),""),"") ->  | H165: =IFERROR(F165*(Hệ_số_hoạt_động),"") ->  | K165: =IFERROR(IF(_xlfn.SINGLE(Tiêu_chuẩn),J165/_xlfn.SINGLE(Calo_Pound),J165/_xlfn.SINGLE(Calo_Pound)/2.2),"") ->  | L165: =IFERROR(Cân_nặng_cần_tăng_giảm-K165,"") ->  | M165: =IFERROR(IF(B164<>"",L165/(Cân_nặng_cần_tăng_giảm),""),"") -> 
F166: =IFERROR(BMR_chạy,"") ->  | G166: =IFERROR(IF(K165>0,F165*Hệ_số_hoạt_động+IF(Cân_nặng_mong_muốn="Duy trì",0,IF(Cân_nặng_mong_muốn="GIẢM",-500,IF(Cân_nặng_mong_muốn="Tăng",500))),""),"") ->  | H166: =IFERROR(F166*(Hệ_số_hoạt_động),"") ->  | K166: =IFERROR(IF(_xlfn.SINGLE(Tiêu_chuẩn),J166/_xlfn.SINGLE(Calo_Pound),J166/_xlfn.SINGLE(Calo_Pound)/2.2),"") ->  | L166: =IFERROR(Cân_nặng_cần_tăng_giảm-K166,"") ->  | M166: =IFERROR(IF(B165<>"",L166/(Cân_nặng_cần_tăng_giảm),""),"") -> 
F167: =IFERROR(BMR_chạy,"") ->  | G167: =IFERROR(IF(K166>0,F166*Hệ_số_hoạt_động+IF(Cân_nặng_mong_muốn="Duy trì",0,IF(Cân_nặng_mong_muốn="GIẢM",-500,IF(Cân_nặng_mong_muốn="Tăng",500))),""),"") ->  | H167: =IFERROR(F167*(Hệ_số_hoạt_động),"") ->  | K167: =IFERROR(IF(_xlfn.SINGLE(Tiêu_chuẩn),J167/_xlfn.SINGLE(Calo_Pound),J167/_xlfn.SINGLE(Calo_Pound)/2.2),"") ->  | L167: =IFERROR(Cân_nặng_cần_tăng_giảm-K167,"") ->  | M167: =IFERROR(IF(B166<>"",L167/(Cân_nặng_cần_tăng_giảm),""),"") -> 
F168: =IFERROR(BMR_chạy,"") ->  | G168: =IFERROR(IF(K167>0,F167*Hệ_số_hoạt_động+IF(Cân_nặng_mong_muốn="Duy trì",0,IF(Cân_nặng_mong_muốn="GIẢM",-500,IF(Cân_nặng_mong_muốn="Tăng",500))),""),"") ->  | H168: =IFERROR(F168*(Hệ_số_hoạt_động),"") ->  | K168: =IFERROR(IF(_xlfn.SINGLE(Tiêu_chuẩn),J168/_xlfn.SINGLE(Calo_Pound),J168/_xlfn.SINGLE(Calo_Pound)/2.2),"") ->  | L168: =IFERROR(Cân_nặng_cần_tăng_giảm-K168,"") ->  | M168: =IFERROR(IF(B167<>"",L168/(Cân_nặng_cần_tăng_giảm),""),"") -> 
F169: =IFERROR(BMR_chạy,"") ->  | G169: =IFERROR(IF(K168>0,F168*Hệ_số_hoạt_động+IF(Cân_nặng_mong_muốn="Duy trì",0,IF(Cân_nặng_mong_muốn="GIẢM",-500,IF(Cân_nặng_mong_muốn="Tăng",500))),""),"") ->  | H169: =IFERROR(F169*(Hệ_số_hoạt_động),"") ->  | K169: =IFERROR(IF(_xlfn.SINGLE(Tiêu_chuẩn),J169/_xlfn.SINGLE(Calo_Pound),J169/_xlfn.SINGLE(Calo_Pound)/2.2),"") ->  | L169: =IFERROR(Cân_nặng_cần_tăng_giảm-K169,"") ->  | M169: =IFERROR(IF(B168<>"",L169/(Cân_nặng_cần_tăng_giảm),""),"") -> 
F170: =IFERROR(BMR_chạy,"") ->  | G170: =IFERROR(IF(K169>0,F169*Hệ_số_hoạt_động+IF(Cân_nặng_mong_muốn="Duy trì",0,IF(Cân_nặng_mong_muốn="GIẢM",-500,IF(Cân_nặng_mong_muốn="Tăng",500))),""),"") ->  | H170: =IFERROR(F170*(Hệ_số_hoạt_động),"") ->  | K170: =IFERROR(IF(_xlfn.SINGLE(Tiêu_chuẩn),J170/_xlfn.SINGLE(Calo_Pound),J170/_xlfn.SINGLE(Calo_Pound)/2.2),"") ->  | L170: =IFERROR(Cân_nặng_cần_tăng_giảm-K170,"") ->  | M170: =IFERROR(IF(B169<>"",L170/(Cân_nặng_cần_tăng_giảm),""),"") -> 
F171: =IFERROR(BMR_chạy,"") ->  | G171: =IFERROR(IF(K170>0,F170*Hệ_số_hoạt_động+IF(Cân_nặng_mong_muốn="Duy trì",0,IF(Cân_nặng_mong_muốn="GIẢM",-500,IF(Cân_nặng_mong_muốn="Tăng",500))),""),"") ->  | H171: =IFERROR(F171*(Hệ_số_hoạt_động),"") ->  | K171: =IFERROR(IF(_xlfn.SINGLE(Tiêu_chuẩn),J171/_xlfn.SINGLE(Calo_Pound),J171/_xlfn.SINGLE(Calo_Pound)/2.2),"") ->  | L171: =IFERROR(Cân_nặng_cần_tăng_giảm-K171,"") ->  | M171: =IFERROR(IF(B170<>"",L171/(Cân_nặng_cần_tăng_giảm),""),"") -> 
F172: =IFERROR(BMR_chạy,"") ->  | G172: =IFERROR(IF(K171>0,F171*Hệ_số_hoạt_động+IF(Cân_nặng_mong_muốn="Duy trì",0,IF(Cân_nặng_mong_muốn="GIẢM",-500,IF(Cân_nặng_mong_muốn="Tăng",500))),""),"") ->  | H172: =IFERROR(F172*(Hệ_số_hoạt_động),"") ->  | K172: =IFERROR(IF(_xlfn.SINGLE(Tiêu_chuẩn),J172/_xlfn.SINGLE(Calo_Pound),J172/_xlfn.SINGLE(Calo_Pound)/2.2),"") ->  | L172: =IFERROR(Cân_nặng_cần_tăng_giảm-K172,"") ->  | M172: =IFERROR(IF(B171<>"",L172/(Cân_nặng_cần_tăng_giảm),""),"") -> 
F173: =IFERROR(BMR_chạy,"") ->  | G173: =IFERROR(IF(K172>0,F172*Hệ_số_hoạt_động+IF(Cân_nặng_mong_muốn="Duy trì",0,IF(Cân_nặng_mong_muốn="GIẢM",-500,IF(Cân_nặng_mong_muốn="Tăng",500))),""),"") ->  | H173: =IFERROR(F173*(Hệ_số_hoạt_động),"") ->  | K173: =IFERROR(IF(_xlfn.SINGLE(Tiêu_chuẩn),J173/_xlfn.SINGLE(Calo_Pound),J173/_xlfn.SINGLE(Calo_Pound)/2.2),"") ->  | L173: =IFERROR(Cân_nặng_cần_tăng_giảm-K173,"") ->  | M173: =IFERROR(IF(B172<>"",L173/(Cân_nặng_cần_tăng_giảm),""),"") -> 
F174: =IFERROR(BMR_chạy,"") ->  | G174: =IFERROR(IF(K173>0,F173*Hệ_số_hoạt_động+IF(Cân_nặng_mong_muốn="Duy trì",0,IF(Cân_nặng_mong_muốn="GIẢM",-500,IF(Cân_nặng_mong_muốn="Tăng",500))),""),"") ->  | H174: =IFERROR(F174*(Hệ_số_hoạt_động),"") ->  | K174: =IFERROR(IF(_xlfn.SINGLE(Tiêu_chuẩn),J174/_xlfn.SINGLE(Calo_Pound),J174/_xlfn.SINGLE(Calo_Pound)/2.2),"") ->  | L174: =IFERROR(Cân_nặng_cần_tăng_giảm-K174,"") ->  | M174: =IFERROR(IF(B173<>"",L174/(Cân_nặng_cần_tăng_giảm),""),"") -> 
F175: =IFERROR(BMR_chạy,"") ->  | G175: =IFERROR(IF(K174>0,F174*Hệ_số_hoạt_động+IF(Cân_nặng_mong_muốn="Duy trì",0,IF(Cân_nặng_mong_muốn="GIẢM",-500,IF(Cân_nặng_mong_muốn="Tăng",500))),""),"") ->  | H175: =IFERROR(F175*(Hệ_số_hoạt_động),"") ->  | K175: =IFERROR(IF(_xlfn.SINGLE(Tiêu_chuẩn),J175/_xlfn.SINGLE(Calo_Pound),J175/_xlfn.SINGLE(Calo_Pound)/2.2),"") ->  | L175: =IFERROR(Cân_nặng_cần_tăng_giảm-K175,"") ->  | M175: =IFERROR(IF(B174<>"",L175/(Cân_nặng_cần_tăng_giảm),""),"") -> 
F176: =IFERROR(BMR_chạy,"") ->  | G176: =IFERROR(IF(K175>0,F175*Hệ_số_hoạt_động+IF(Cân_nặng_mong_muốn="Duy trì",0,IF(Cân_nặng_mong_muốn="GIẢM",-500,IF(Cân_nặng_mong_muốn="Tăng",500))),""),"") ->  | H176: =IFERROR(F176*(Hệ_số_hoạt_động),"") ->  | K176: =IFERROR(IF(_xlfn.SINGLE(Tiêu_chuẩn),J176/_xlfn.SINGLE(Calo_Pound),J176/_xlfn.SINGLE(Calo_Pound)/2.2),"") ->  | L176: =IFERROR(Cân_nặng_cần_tăng_giảm-K176,"") ->  | M176: =IFERROR(IF(B175<>"",L176/(Cân_nặng_cần_tăng_giảm),""),"") -> 
F177: =IFERROR(BMR_chạy,"") ->  | G177: =IFERROR(IF(K176>0,F176*Hệ_số_hoạt_động+IF(Cân_nặng_mong_muốn="Duy trì",0,IF(Cân_nặng_mong_muốn="GIẢM",-500,IF(Cân_nặng_mong_muốn="Tăng",500))),""),"") ->  | H177: =IFERROR(F177*(Hệ_số_hoạt_động),"") ->  | K177: =IFERROR(IF(_xlfn.SINGLE(Tiêu_chuẩn),J177/_xlfn.SINGLE(Calo_Pound),J177/_xlfn.SINGLE(Calo_Pound)/2.2),"") ->  | L177: =IFERROR(Cân_nặng_cần_tăng_giảm-K177,"") ->  | M177: =IFERROR(IF(B176<>"",L177/(Cân_nặng_cần_tăng_giảm),""),"") -> 
F178: =IFERROR(BMR_chạy,"") ->  | G178: =IFERROR(IF(K177>0,F177*Hệ_số_hoạt_động+IF(Cân_nặng_mong_muốn="Duy trì",0,IF(Cân_nặng_mong_muốn="GIẢM",-500,IF(Cân_nặng_mong_muốn="Tăng",500))),""),"") ->  | H178: =IFERROR(F178*(Hệ_số_hoạt_động),"") ->  | K178: =IFERROR(IF(_xlfn.SINGLE(Tiêu_chuẩn),J178/_xlfn.SINGLE(Calo_Pound),J178/_xlfn.SINGLE(Calo_Pound)/2.2),"") ->  | L178: =IFERROR(Cân_nặng_cần_tăng_giảm-K178,"") ->  | M178: =IFERROR(IF(B177<>"",L178/(Cân_nặng_cần_tăng_giảm),""),"") -> 
F179: =IFERROR(BMR_chạy,"") ->  | G179: =IFERROR(IF(K178>0,F178*Hệ_số_hoạt_động+IF(Cân_nặng_mong_muốn="Duy trì",0,IF(Cân_nặng_mong_muốn="GIẢM",-500,IF(Cân_nặng_mong_muốn="Tăng",500))),""),"") ->  | H179: =IFERROR(F179*(Hệ_số_hoạt_động),"") ->  | K179: =IFERROR(IF(_xlfn.SINGLE(Tiêu_chuẩn),J179/_xlfn.SINGLE(Calo_Pound),J179/_xlfn.SINGLE(Calo_Pound)/2.2),"") ->  | L179: =IFERROR(Cân_nặng_cần_tăng_giảm-K179,"") ->  | M179: =IFERROR(IF(B178<>"",L179/(Cân_nặng_cần_tăng_giảm),""),"") -> 
F180: =IFERROR(BMR_chạy,"") ->  | G180: =IFERROR(IF(K179>0,F179*Hệ_số_hoạt_động+IF(Cân_nặng_mong_muốn="Duy trì",0,IF(Cân_nặng_mong_muốn="GIẢM",-500,IF(Cân_nặng_mong_muốn="Tăng",500))),""),"") ->  | H180: =IFERROR(F180*(Hệ_số_hoạt_động),"") ->  | K180: =IFERROR(IF(_xlfn.SINGLE(Tiêu_chuẩn),J180/_xlfn.SINGLE(Calo_Pound),J180/_xlfn.SINGLE(Calo_Pound)/2.2),"") ->  | L180: =IFERROR(Cân_nặng_cần_tăng_giảm-K180,"") ->  | M180: =IFERROR(IF(B179<>"",L180/(Cân_nặng_cần_tăng_giảm),""),"") -> 
F181: =IFERROR(BMR_chạy,"") ->  | G181: =IFERROR(IF(K180>0,F180*Hệ_số_hoạt_động+IF(Cân_nặng_mong_muốn="Duy trì",0,IF(Cân_nặng_mong_muốn="GIẢM",-500,IF(Cân_nặng_mong_muốn="Tăng",500))),""),"") ->  | H181: =IFERROR(F181*(Hệ_số_hoạt_động),"") ->  | K181: =IFERROR(IF(_xlfn.SINGLE(Tiêu_chuẩn),J181/_xlfn.SINGLE(Calo_Pound),J181/_xlfn.SINGLE(Calo_Pound)/2.2),"") ->  | L181: =IFERROR(Cân_nặng_cần_tăng_giảm-K181,"") ->  | M181: =IFERROR(IF(B180<>"",L181/(Cân_nặng_cần_tăng_giảm),""),"") -> 
F182: =IFERROR(BMR_chạy,"") ->  | G182: =IFERROR(IF(K181>0,F181*Hệ_số_hoạt_động+IF(Cân_nặng_mong_muốn="Duy trì",0,IF(Cân_nặng_mong_muốn="GIẢM",-500,IF(Cân_nặng_mong_muốn="Tăng",500))),""),"") ->  | H182: =IFERROR(F182*(Hệ_số_hoạt_động),"") ->  | K182: =IFERROR(IF(_xlfn.SINGLE(Tiêu_chuẩn),J182/_xlfn.SINGLE(Calo_Pound),J182/_xlfn.SINGLE(Calo_Pound)/2.2),"") ->  | L182: =IFERROR(Cân_nặng_cần_tăng_giảm-K182,"") ->  | M182: =IFERROR(IF(B181<>"",L182/(Cân_nặng_cần_tăng_giảm),""),"") -> 
F183: =IFERROR(BMR_chạy,"") ->  | G183: =IFERROR(IF(K182>0,F182*Hệ_số_hoạt_động+IF(Cân_nặng_mong_muốn="Duy trì",0,IF(Cân_nặng_mong_muốn="GIẢM",-500,IF(Cân_nặng_mong_muốn="Tăng",500))),""),"") ->  | H183: =IFERROR(F183*(Hệ_số_hoạt_động),"") ->  | K183: =IFERROR(IF(_xlfn.SINGLE(Tiêu_chuẩn),J183/_xlfn.SINGLE(Calo_Pound),J183/_xlfn.SINGLE(Calo_Pound)/2.2),"") ->  | L183: =IFERROR(Cân_nặng_cần_tăng_giảm-K183,"") ->  | M183: =IFERROR(IF(B182<>"",L183/(Cân_nặng_cần_tăng_giảm),""),"") -> 
F184: =IFERROR(BMR_chạy,"") ->  | G184: =IFERROR(IF(K183>0,F183*Hệ_số_hoạt_động+IF(Cân_nặng_mong_muốn="Duy trì",0,IF(Cân_nặng_mong_muốn="GIẢM",-500,IF(Cân_nặng_mong_muốn="Tăng",500))),""),"") ->  | H184: =IFERROR(F184*(Hệ_số_hoạt_động),"") ->  | K184: =IFERROR(IF(_xlfn.SINGLE(Tiêu_chuẩn),J184/_xlfn.SINGLE(Calo_Pound),J184/_xlfn.SINGLE(Calo_Pound)/2.2),"") ->  | L184: =IFERROR(Cân_nặng_cần_tăng_giảm-K184,"") ->  | M184: =IFERROR(IF(B183<>"",L184/(Cân_nặng_cần_tăng_giảm),""),"") -> 
F185: =IFERROR(BMR_chạy,"") ->  | G185: =IFERROR(IF(K184>0,F184*Hệ_số_hoạt_động+IF(Cân_nặng_mong_muốn="Duy trì",0,IF(Cân_nặng_mong_muốn="GIẢM",-500,IF(Cân_nặng_mong_muốn="Tăng",500))),""),"") ->  | H185: =IFERROR(F185*(Hệ_số_hoạt_động),"") ->  | K185: =IFERROR(IF(_xlfn.SINGLE(Tiêu_chuẩn),J185/_xlfn.SINGLE(Calo_Pound),J185/_xlfn.SINGLE(Calo_Pound)/2.2),"") ->  | L185: =IFERROR(Cân_nặng_cần_tăng_giảm-K185,"") ->  | M185: =IFERROR(IF(B184<>"",L185/(Cân_nặng_cần_tăng_giảm),""),"") -> 
F186: =IFERROR(BMR_chạy,"") ->  | G186: =IFERROR(IF(K185>0,F185*Hệ_số_hoạt_động+IF(Cân_nặng_mong_muốn="Duy trì",0,IF(Cân_nặng_mong_muốn="GIẢM",-500,IF(Cân_nặng_mong_muốn="Tăng",500))),""),"") ->  | H186: =IFERROR(F186*(Hệ_số_hoạt_động),"") ->  | K186: =IFERROR(IF(_xlfn.SINGLE(Tiêu_chuẩn),J186/_xlfn.SINGLE(Calo_Pound),J186/_xlfn.SINGLE(Calo_Pound)/2.2),"") ->  | L186: =IFERROR(Cân_nặng_cần_tăng_giảm-K186,"") ->  | M186: =IFERROR(IF(B185<>"",L186/(Cân_nặng_cần_tăng_giảm),""),"") -> 
F187: =IFERROR(BMR_chạy,"") ->  | G187: =IFERROR(IF(K186>0,F186*Hệ_số_hoạt_động+IF(Cân_nặng_mong_muốn="Duy trì",0,IF(Cân_nặng_mong_muốn="GIẢM",-500,IF(Cân_nặng_mong_muốn="Tăng",500))),""),"") ->  | H187: =IFERROR(F187*(Hệ_số_hoạt_động),"") ->  | K187: =IFERROR(IF(_xlfn.SINGLE(Tiêu_chuẩn),J187/_xlfn.SINGLE(Calo_Pound),J187/_xlfn.SINGLE(Calo_Pound)/2.2),"") ->  | L187: =IFERROR(Cân_nặng_cần_tăng_giảm-K187,"") ->  | M187: =IFERROR(IF(B186<>"",L187/(Cân_nặng_cần_tăng_giảm),""),"") -> 
F188: =IFERROR(BMR_chạy,"") ->  | G188: =IFERROR(IF(K187>0,F187*Hệ_số_hoạt_động+IF(Cân_nặng_mong_muốn="Duy trì",0,IF(Cân_nặng_mong_muốn="GIẢM",-500,IF(Cân_nặng_mong_muốn="Tăng",500))),""),"") ->  | H188: =IFERROR(F188*(Hệ_số_hoạt_động),"") ->  | K188: =IFERROR(IF(_xlfn.SINGLE(Tiêu_chuẩn),J188/_xlfn.SINGLE(Calo_Pound),J188/_xlfn.SINGLE(Calo_Pound)/2.2),"") ->  | L188: =IFERROR(Cân_nặng_cần_tăng_giảm-K188,"") ->  | M188: =IFERROR(IF(B187<>"",L188/(Cân_nặng_cần_tăng_giảm),""),"") -> 
F189: =IFERROR(BMR_chạy,"") ->  | G189: =IFERROR(IF(K188>0,F188*Hệ_số_hoạt_động+IF(Cân_nặng_mong_muốn="Duy trì",0,IF(Cân_nặng_mong_muốn="GIẢM",-500,IF(Cân_nặng_mong_muốn="Tăng",500))),""),"") ->  | H189: =IFERROR(F189*(Hệ_số_hoạt_động),"") ->  | K189: =IFERROR(IF(_xlfn.SINGLE(Tiêu_chuẩn),J189/_xlfn.SINGLE(Calo_Pound),J189/_xlfn.SINGLE(Calo_Pound)/2.2),"") ->  | L189: =IFERROR(Cân_nặng_cần_tăng_giảm-K189,"") ->  | M189: =IFERROR(IF(B188<>"",L189/(Cân_nặng_cần_tăng_giảm),""),"") -> 
F190: =IFERROR(BMR_chạy,"") ->  | G190: =IFERROR(IF(K189>0,F189*Hệ_số_hoạt_động+IF(Cân_nặng_mong_muốn="Duy trì",0,IF(Cân_nặng_mong_muốn="GIẢM",-500,IF(Cân_nặng_mong_muốn="Tăng",500))),""),"") ->  | H190: =IFERROR(F190*(Hệ_số_hoạt_động),"") ->  | K190: =IFERROR(IF(_xlfn.SINGLE(Tiêu_chuẩn),J190/_xlfn.SINGLE(Calo_Pound),J190/_xlfn.SINGLE(Calo_Pound)/2.2),"") ->  | L190: =IFERROR(Cân_nặng_cần_tăng_giảm-K190,"") ->  | M190: =IFERROR(IF(B189<>"",L190/(Cân_nặng_cần_tăng_giảm),""),"") -> 
F191: =IFERROR(BMR_chạy,"") ->  | G191: =IFERROR(IF(K190>0,F190*Hệ_số_hoạt_động+IF(Cân_nặng_mong_muốn="Duy trì",0,IF(Cân_nặng_mong_muốn="GIẢM",-500,IF(Cân_nặng_mong_muốn="Tăng",500))),""),"") ->  | H191: =IFERROR(F191*(Hệ_số_hoạt_động),"") ->  | K191: =IFERROR(IF(_xlfn.SINGLE(Tiêu_chuẩn),J191/_xlfn.SINGLE(Calo_Pound),J191/_xlfn.SINGLE(Calo_Pound)/2.2),"") ->  | L191: =IFERROR(Cân_nặng_cần_tăng_giảm-K191,"") ->  | M191: =IFERROR(IF(B190<>"",L191/(Cân_nặng_cần_tăng_giảm),""),"") -> 
F192: =IFERROR(BMR_chạy,"") ->  | G192: =IFERROR(IF(K191>0,F191*Hệ_số_hoạt_động+IF(Cân_nặng_mong_muốn="Duy trì",0,IF(Cân_nặng_mong_muốn="GIẢM",-500,IF(Cân_nặng_mong_muốn="Tăng",500))),""),"") ->  | H192: =IFERROR(F192*(Hệ_số_hoạt_động),"") ->  | K192: =IFERROR(IF(_xlfn.SINGLE(Tiêu_chuẩn),J192/_xlfn.SINGLE(Calo_Pound),J192/_xlfn.SINGLE(Calo_Pound)/2.2),"") ->  | L192: =IFERROR(Cân_nặng_cần_tăng_giảm-K192,"") ->  | M192: =IFERROR(IF(B191<>"",L192/(Cân_nặng_cần_tăng_giảm),""),"") -> 
F193: =IFERROR(BMR_chạy,"") ->  | G193: =IFERROR(IF(K192>0,F192*Hệ_số_hoạt_động+IF(Cân_nặng_mong_muốn="Duy trì",0,IF(Cân_nặng_mong_muốn="GIẢM",-500,IF(Cân_nặng_mong_muốn="Tăng",500))),""),"") ->  | H193: =IFERROR(F193*(Hệ_số_hoạt_động),"") ->  | K193: =IFERROR(IF(_xlfn.SINGLE(Tiêu_chuẩn),J193/_xlfn.SINGLE(Calo_Pound),J193/_xlfn.SINGLE(Calo_Pound)/2.2),"") ->  | L193: =IFERROR(Cân_nặng_cần_tăng_giảm-K193,"") ->  | M193: =IFERROR(IF(B192<>"",L193/(Cân_nặng_cần_tăng_giảm),""),"") -> 
F194: =IFERROR(BMR_chạy,"") ->  | G194: =IFERROR(IF(K193>0,F193*Hệ_số_hoạt_động+IF(Cân_nặng_mong_muốn="Duy trì",0,IF(Cân_nặng_mong_muốn="GIẢM",-500,IF(Cân_nặng_mong_muốn="Tăng",500))),""),"") ->  | H194: =IFERROR(F194*(Hệ_số_hoạt_động),"") ->  | K194: =IFERROR(IF(_xlfn.SINGLE(Tiêu_chuẩn),J194/_xlfn.SINGLE(Calo_Pound),J194/_xlfn.SINGLE(Calo_Pound)/2.2),"") ->  | L194: =IFERROR(Cân_nặng_cần_tăng_giảm-K194,"") ->  | M194: =IFERROR(IF(B193<>"",L194/(Cân_nặng_cần_tăng_giảm),""),"") -> 
F195: =IFERROR(BMR_chạy,"") ->  | G195: =IFERROR(IF(K194>0,F194*Hệ_số_hoạt_động+IF(Cân_nặng_mong_muốn="Duy trì",0,IF(Cân_nặng_mong_muốn="GIẢM",-500,IF(Cân_nặng_mong_muốn="Tăng",500))),""),"") ->  | H195: =IFERROR(F195*(Hệ_số_hoạt_động),"") ->  | K195: =IFERROR(IF(_xlfn.SINGLE(Tiêu_chuẩn),J195/_xlfn.SINGLE(Calo_Pound),J195/_xlfn.SINGLE(Calo_Pound)/2.2),"") ->  | L195: =IFERROR(Cân_nặng_cần_tăng_giảm-K195,"") ->  | M195: =IFERROR(IF(B194<>"",L195/(Cân_nặng_cần_tăng_giảm),""),"") -> 
F196: =IFERROR(BMR_chạy,"") ->  | G196: =IFERROR(IF(K195>0,F195*Hệ_số_hoạt_động+IF(Cân_nặng_mong_muốn="Duy trì",0,IF(Cân_nặng_mong_muốn="GIẢM",-500,IF(Cân_nặng_mong_muốn="Tăng",500))),""),"") ->  | H196: =IFERROR(F196*(Hệ_số_hoạt_động),"") ->  | K196: =IFERROR(IF(_xlfn.SINGLE(Tiêu_chuẩn),J196/_xlfn.SINGLE(Calo_Pound),J196/_xlfn.SINGLE(Calo_Pound)/2.2),"") ->  | L196: =IFERROR(Cân_nặng_cần_tăng_giảm-K196,"") ->  | M196: =IFERROR(IF(B195<>"",L196/(Cân_nặng_cần_tăng_giảm),""),"") -> 
F197: =IFERROR(BMR_chạy,"") ->  | G197: =IFERROR(IF(K196>0,F196*Hệ_số_hoạt_động+IF(Cân_nặng_mong_muốn="Duy trì",0,IF(Cân_nặng_mong_muốn="GIẢM",-500,IF(Cân_nặng_mong_muốn="Tăng",500))),""),"") ->  | H197: =IFERROR(F197*(Hệ_số_hoạt_động),"") ->  | K197: =IFERROR(IF(_xlfn.SINGLE(Tiêu_chuẩn),J197/_xlfn.SINGLE(Calo_Pound),J197/_xlfn.SINGLE(Calo_Pound)/2.2),"") ->  | L197: =IFERROR(Cân_nặng_cần_tăng_giảm-K197,"") ->  | M197: =IFERROR(IF(B196<>"",L197/(Cân_nặng_cần_tăng_giảm),""),"") -> 
F198: =IFERROR(BMR_chạy,"") ->  | G198: =IFERROR(IF(K197>0,F197*Hệ_số_hoạt_động+IF(Cân_nặng_mong_muốn="Duy trì",0,IF(Cân_nặng_mong_muốn="GIẢM",-500,IF(Cân_nặng_mong_muốn="Tăng",500))),""),"") ->  | H198: =IFERROR(F198*(Hệ_số_hoạt_động),"") ->  | K198: =IFERROR(IF(_xlfn.SINGLE(Tiêu_chuẩn),J198/_xlfn.SINGLE(Calo_Pound),J198/_xlfn.SINGLE(Calo_Pound)/2.2),"") ->  | L198: =IFERROR(Cân_nặng_cần_tăng_giảm-K198,"") ->  | M198: =IFERROR(IF(B197<>"",L198/(Cân_nặng_cần_tăng_giảm),""),"") -> 
F199: =IFERROR(BMR_chạy,"") ->  | G199: =IFERROR(IF(K198>0,F198*Hệ_số_hoạt_động+IF(Cân_nặng_mong_muốn="Duy trì",0,IF(Cân_nặng_mong_muốn="GIẢM",-500,IF(Cân_nặng_mong_muốn="Tăng",500))),""),"") ->  | H199: =IFERROR(F199*(Hệ_số_hoạt_động),"") ->  | K199: =IFERROR(IF(_xlfn.SINGLE(Tiêu_chuẩn),J199/_xlfn.SINGLE(Calo_Pound),J199/_xlfn.SINGLE(Calo_Pound)/2.2),"") ->  | L199: =IFERROR(Cân_nặng_cần_tăng_giảm-K199,"") ->  | M199: =IFERROR(IF(B198<>"",L199/(Cân_nặng_cần_tăng_giảm),""),"") -> 
F200: =IFERROR(BMR_chạy,"") ->  | G200: =IFERROR(IF(K199>0,F199*Hệ_số_hoạt_động+IF(Cân_nặng_mong_muốn="Duy trì",0,IF(Cân_nặng_mong_muốn="GIẢM",-500,IF(Cân_nặng_mong_muốn="Tăng",500))),""),"") ->  | H200: =IFERROR(F200*(Hệ_số_hoạt_động),"") ->  | K200: =IFERROR(IF(_xlfn.SINGLE(Tiêu_chuẩn),J200/_xlfn.SINGLE(Calo_Pound),J200/_xlfn.SINGLE(Calo_Pound)/2.2),"") ->  | L200: =IFERROR(Cân_nặng_cần_tăng_giảm-K200,"") ->  | M200: =IFERROR(IF(B199<>"",L200/(Cân_nặng_cần_tăng_giảm),""),"") -> 
... 798 more rows

Sheet Tra cứu hình thức tập luyện (hidden)
B1: Tra cứu hình thức tập luyện
B2: Trang tính này sẽ vẫn bị ẩn.
B3: LOẠI TẬP THỂ DỤC | C3: MÔ TẢ | D3: YẾU TỐ
B4: ÍT VẬN ĐỘNG | C4: ÍT ĐẾN KHÔNG TẬP THỂ DỤC | D4: 1.2
B5: HOẠT ĐỘNG NHẸ | C5: TẬP THỂ DỤC 1-2 NGÀY/TUẦN | D5: 1.375
B6: HOẠT ĐỘNG BÌNH THƯỜNG | C6: TẬP THỂ DỤC 3-5 NGÀY/TUẦN | D6: 1.55
B7: RẤT TÍCH CỰC | C7: TẬP THỂ DỤC 6-7 NGÀY/TUẦN | D7: 1.725
B8: CỰC KỲ TÍCH CỰC | C8: TẬP THỂ DỤC 6-7 NGÀY/TUẦN + CÔNG VIỆC THỂ CHẤT/LUYỆN TẬP 2X | D8: 1.9
